Cogmind - Beta 13 @@@ ROGUE MODE // 2024.06.30 @ 17:23:22 Player: Dosh Result: Escaped! Performance ------------- Evolutions (9) 4500 Regions Visited (44) 8800 Robots Destroyed (602) 3010 Value Destroyed (22701) 22701 Prototype IDs (107) 2140 Alien Tech Used (13) 2600 Bonus (10932) 10932 TOTAL SCORE: 54683 Bonus ------- Triggered High Security 500 High Alert Combat Kills 11366 Follower Combat Kills 874 Entered Garrisons 400 Aligned with FarCom 300 Met Data Miner 300 Acquired ECA 300 Met Zhirov 300 Met Warlord at Base 500 MAIN.C Attacked Warlord 500 Scanned by Researcher 500 Pursued by Intercept 500 Met Warlord at Command 2000 Win 3000 Friendly Fire -10408 Cogmind --------- Core Integrity 757/1600 Matter 185/300 Energy 230/350 System Corruption 0% Temperature Cool (11) Movement Flying (18) Location To Epsilon Eridani Parts ------- > --- POWER (2) -------- (None) > --- PROPULSION (8) --- Cooled Field Propulsion Drive Cooled Field Propulsion Drive Cooled Field Propulsion Drive Impulse Thruster Array Cooled Q-thruster > --- UTILITY (13) ----- Structural Scanner Experimental Sensor Array Experimental Signal Interpreter Experimental Cloaking Device Advanced System Shield Ghost Barrier > --- WEAPON (2) ------- Long-range Missile Launcher Molecular Scythe > --- INVENTORY (5) ---- Integrity Redistributor Enhanced Nova Cannon Peak State ------------ > --- POWER ------------ Graviton Reactor Graviton Reactor > --- PROPULSION ------- Cooled Nuclear Pulse Thruster Impulse Thruster Cooled Field Propulsion Drive Cooled Field Propulsion Drive Cooled Field Propulsion Drive Improved Diametric Drive Cooled Impulse Thruster Cooled Q-thruster > --- UTILITY ---------- Medium Storage Unit Experimental Sensor Array Experimental Signal Interpreter Stasis Canceller Experimental Reaction Control System Advanced Phase Shifter Experimental Cloaking Device Experimental Utility Shielding Experimental Hacking Suite Experimental Hacking Suite Experimental Hacking Suite Advanced System Shield Ghost Barrier > --- WEAPON ----------- Molecular Scythe > --- INVENTORY -------- Quantum Reactor 2N-1CE's Frost Array Structural Scanner Integrity Redistributor Navigation Efficiency Matrix Long-range Missile Launcher Supercharged Sigix Terminator [Rating: 197] Favorites ----------- Power Heavy Ion Engine Engine Heavy Ion Engine Power Core Backup Power VII Reactor Graviton Reactor Propulsion Light Treads Treads Light Treads Flight Unit Cooled VTOL Module Utility Experimental Hacking Suite Device Experimental Sensor Array Storage Huge Storage Unit Processor Improved Signal Interpreter Hackware Experimental Hacking Suite Protection Light Armor Plating Artifact Phase Redirector Weapon Improved Datajack Energy Gun Phase Gun Energy Cannon Compact HERF Cannon Ballistic Gun Minigun Ballistic Cannon Compact Linear Accelerator Launcher Long-range Missile Launcher Impact Weapon Great Maul Slashing Weapon Scythe Special Melee Weapon Improved Datajack Build | -11 -10 -10 -10 -9 -8 -8 -8 -7 -7 -7 -7 -7 -7 -6 -6 -6 -6 -6 -6 -6 -5 -5 -5 -5 -5 -5 -5 -4 -4 -4 -4 -4 -4 -4 -3 -3 -3 -2 -2 -2 -1 -1 -1 -1 ------- Run | Yrd Mat Min Exi Min Mat Gar Mat Fac Was Fac Low Low Zio Pro Fac Was Fac Low Low Dat Pro Fac Was Fac Upp Upp Zhi Pro Fac Was Fac Upp Upp War Pro Res Tes Res Qua Sec Acc Gar Acc Com Slots Evolved 18 | . . . . . 4 . . 2 . . . . . . 2 . . . . . . 2 . . . . . . 2 . . . . . . 2 . 2 . . 2 . . . Power 1 | . . . . . . . . . . . . . . . . . . . . . . 1 . . . . . . . . . . . . . . . . . . . . . . Propulsion 6 | . . . . . 1 . . . . . . . . . 1 . . . . . . 1 . . . . . . 1 . . . . . . . . 1 . . 1 . . . Utility 11 | . . . . . 3 . . 2 . . . . . . 1 . . . . . . . . . . . . . 1 . . . . . . 2 . 1 . . 1 . . . Weapon . | . . . . . . . . . . . . . . . . . . . . . . . . . . . . . . . . . . . . . . . . . . . . . Parts Attached 439 | 6 5 4 1 4 27 29 28 26 . 29 2 . 2 . 29 2 20 3 . . 12 41 . 22 . 1 4 3 33 . 18 3 . 7 2 4 19 3 18 18 4 1 2 7 Power 39 | 1 . . . . 2 2 1 2 . 2 . . . . 2 . 2 . . . . 3 . 5 . . . . 4 . 2 . . . . 2 3 1 2 1 . . 1 1 Engine 16 | 1 . . . . 2 2 1 1 . . . . . . . . . . . . . 1 . 1 . . . . 2 . . . . . . 1 2 1 1 . . . . . Core 10 | . . . . . . . . 1 . 2 . . . . 2 . 2 . . . . 2 . 1 . . . . . . . . . . . . . . . . . . . . Reactor 13 | . . . . . . . . . . . . . . . . . . . . . . . . 3 . . . . 2 . 2 . . . . 1 1 . 1 1 . . 1 1 Propulsion 97 | 2 . . . . 6 7 8 6 . 12 . . . . 6 . 2 1 . . . 13 . 8 . . . . 4 . 6 . . 5 . . 4 1 4 . 1 . . 1 Treads 21 | 2 . . . . 5 7 7 . . . . . . . . . . . . . . . . . . . . . . . . . . . . . . . . . . . . . Leg . | . . . . . . . . . . . . . . . . . . . . . . . . . . . . . . . . . . . . . . . . . . . . . Wheel . | . . . . . . . . . . . . . . . . . . . . . . . . . . . . . . . . . . . . . . . . . . . . . Hover . | . . . . . . . . . . . . . . . . . . . . . . . . . . . . . . . . . . . . . . . . . . . . . Flight 76 | . . . . . 1 . 1 6 . 12 . . . . 6 . 2 1 . . . 13 . 8 . . . . 4 . 6 . . 5 . . 4 1 4 . 1 . . 1 Utility 153 | 1 3 3 . . 10 5 8 8 . 12 . . . . 15 . 5 . . . 2 19 . 3 . . 4 . 8 . 6 1 . 2 . 2 7 1 10 11 3 1 1 2 Device 95 | . . 1 . . 2 2 3 3 . 10 . . . . 8 . 4 . . . 2 13 . 1 . . 3 . 6 . 6 1 . 2 . 1 4 1 8 9 3 1 1 . Storage 5 | 1 1 1 . . 1 . . . . . . . . . . . . . . . . . . . . . . . . . . . . . . . 1 . . . . . . . Processor 11 | . . . . . 1 . 1 2 . . . . . . 2 . . . . . . 2 . 1 . . . . 1 . . . . . . 1 . . . . . . . . Hackware 18 | . . . . . . . . 3 . 2 . . . . 5 . 1 . . . . 4 . 1 . . . . . . . . . . . . 1 . 1 . . . . . Protection 23 | . 2 1 . . 6 3 4 . . . . . . . . . . . . . . . . . . . 1 . 1 . . . . . . . 1 . . 2 . . . 2 Artifact 1 | . . . . . . . . . . . . . . . . . . . . . . . . . . . . . . . . . . . . . . . 1 . . . . . Weapon 150 | 2 2 1 1 4 9 15 11 10 . 3 2 . 2 . 6 2 11 2 . . 10 6 . 6 . 1 . 3 17 . 4 2 . . 2 . 5 . 2 6 . . . 3 Energy Gun 2 | . . . . . . . 1 . . . . . . . . . . . . . . . . . . . . . . . . . . . . . . . . 1 . . . . Energy Cannon 5 | . . . . . 1 . . . . . . . . . . 1 . . . . 1 . . . . . . . 2 . . . . . . . . . . . . . . . Ballistic Gun 30 | 2 2 . 1 2 8 9 6 . . . . . . . . . . . . . . . . . . . . . . . . . . . . . . . . . . . . . Ballistic Cannon 1 | . . . . . . . . . . . . . . . . . . . . . . . . . . . . . 1 . . . . . . . . . . . . . . . Launcher 42 | . . . . 1 . 2 1 3 . 1 1 . 1 . 3 . 5 1 . . 4 1 . 3 . . . 1 5 . 1 1 . . 1 . 2 . 1 1 . . . 2 Special Weapon . | . . . . . . . . . . . . . . . . . . . . . . . . . . . . . . . . . . . . . . . . . . . . . Impact Weapon 8 | . . 1 . 1 . 4 1 1 . . . . . . . . . . . . . . . . . . . . . . . . . . . . . . . . . . . . Slashing Weapon 38 | . . . . . . . . 4 . 2 1 . . . . 1 3 1 . . . 4 . 3 . 1 . 2 5 . 2 1 . . 1 . 2 . 1 3 . . . 1 Piercing Weapon . | . . . . . . . . . . . . . . . . . . . . . . . . . . . . . . . . . . . . . . . . . . . . . Special Melee Weapon 24 | . . . . . . . 2 2 . . . . 1 . 3 . 3 . . . 5 1 . . . . . . 4 . 1 . . . . . 1 . . 1 . . . . Unidentified Prototypes 38 | . . 1 . . 5 . 1 1 . 2 . . 1 . 2 . . . . . 1 . . . . . 3 . 6 . 4 . . 3 . . 2 . 2 3 . . . 1 Parts Lost 49 | . 1 . . . 4 4 3 . . 1 . 3 . . 1 . 2 1 1 . . 8 . . . . . . 2 . 1 . . . . 1 3 . . . . 1 2 10 Power 11 | . . . . . . . . . . . . 1 . . . . . . . . . 1 . . . . . . 1 . 1 . . . . 1 3 . . . . . 1 2 Propulsion 17 | . . . . . 1 2 1 . . . . 2 . . . . . 1 1 . . 4 . . . . . . 1 . . . . . . . . . . . . . . 4 Utility 20 | . 1 . . . 3 2 2 . . 1 . . . . 1 . 1 . . . . 3 . . . . . . . . . . . . . . . . . . . 1 1 4 Weapon 1 | . . . . . . . . . . . . . . . . . 1 . . . . . . . . . . . . . . . . . . . . . . . . . . . Highest Loss Streak 8 | . 1 . . . 1 2 2 . . 1 . 3 . . 1 . 1 1 1 . . 6 . . . . . . 1 . 1 . . . . 1 2 . . . . 1 2 8 To Critical Strikes . | . . . . . . . . . . . . . . . . . . . . . . . . . . . . . . . . . . . . . . . . . . . . . Average Slot Usage (%) 96 | . 94 100 100 100 93 97 99 94 100 99 100 78 76 76 95 100 97 98 97 93 93 94 100 98 100 100 100 98 96 100 98 94 94 98 100 98 98 97 99 96 92 96 95 74 Engine 5 | . 14 14 14 14 9 8 9 5 . . . . . . . . . . . . . . . 3 5 5 5 5 5 . . . . 4 5 3 5 2 3 3 . . . . Core 2 | . . . . . . . . 1 7 6 7 . . . 5 6 5 6 6 6 6 7 11 5 . . . . . 5 4 . . . . . . . . . . . . . Reactor 1 | . . . . . . . . . . . . . . . . . . . . . . . . . 5 5 5 5 4 5 4 5 5 5 5 4 2 4 3 4 8 8 7 6 Treads 11 | . 28 28 28 28 26 26 27 . . . . . . . . . . . . . . . . . . . . . . . . . . . . . . . . . . . . . Flight 15 | . . . . . . . . 22 23 22 23 8 7 7 23 26 25 24 24 20 20 27 29 27 29 29 29 29 29 31 29 31 31 30 31 28 28 30 29 30 28 32 32 25 Device 7 | . . . . . 8 9 1 14 15 8 7 7 7 7 6 6 11 13 13 13 13 6 11 10 11 11 9 11 10 10 11 15 15 15 15 19 14 16 14 16 19 20 23 16 Storage 4 | . 14 14 14 14 9 9 9 . . . . . . . . . . . . . . . . . . . . . . . . . . . . . 3 4 4 4 4 4 4 2 Processor 9 | . . . . . 8 9 16 19 15 15 15 15 15 15 18 20 12 6 6 6 6 9 11 6 5 5 5 5 5 10 8 5 5 5 5 8 4 4 4 4 4 4 4 4 Hackware 14 | . . . . . . . . 13 23 28 30 30 30 30 25 26 26 33 33 33 33 28 23 28 29 29 29 29 25 21 21 21 21 21 21 19 22 21 23 21 20 20 20 14 Protection 7 | . 8 14 14 14 14 16 17 . . . . . . . . . . . . . . . . . . . 1 . 5 5 5 5 5 5 5 4 3 4 4 4 4 4 . . Ballistic Gun 8 | . 28 23 28 24 18 16 16 . . . . . . . . . . . . . . . . . . . . . . . . . . . . . . . . . . . . . Slashing Weapon 2 | . . . . . . . . 6 7 7 4 7 7 7 6 5 5 2 6 6 6 4 5 4 5 5 5 2 4 5 5 4 5 5 4 4 3 4 3 3 4 4 4 3 Special Melee Weapon 3 | . . . . . . . 1 6 7 7 7 7 7 7 5 6 5 6 6 6 4 4 5 5 5 5 5 5 4 5 5 5 5 5 5 4 3 4 4 1 . . . . Naked Turns . | . . . . . . . . . . . . . . . . . . . . . . . . . . . . . . . . . . . . . . . . . . . . . Heaviest Build 119 | 13 22 92 92 94 112 119 118 17 15 15 15 10 4 4 17 16 19 18 12 12 19 16 14 23 23 23 23 28 31 26 29 25 25 27 27 29 38 43 45 53 56 56 57 73 Greatest Support 80 | 40 40 40 40 40 68 68 60 15 15 19 21 19 5 5 28 20 28 20 21 15 19 37 26 31 35 26 26 26 42 41 44 28 32 38 38 38 52 55 57 60 65 80 65 73 Greatest Overweight (x) 5 | . . 2 2 2 5 1 1 1 . . . . . . 1 . . . . . 1 . . . . . . 1 1 . . . . 1 . . . . . 1 1 . . . Average Overweight (x) . | . . 1 2 2 1 1 1 . . . . . . . . . . . . . . . . . . . . . . . . . . . . . . . . . . . . . Largest Inventory Capacity 25 | 8 10 25 25 25 25 25 25 25 5 5 5 5 5 5 5 5 5 5 5 5 5 5 5 5 5 5 5 5 5 5 5 5 5 5 5 5 10 10 10 10 10 10 10 10 Average Capacity 13 | 6 8 21 25 25 25 25 25 5 5 5 5 5 5 5 5 5 5 5 5 5 5 5 5 5 5 5 5 5 5 5 5 5 5 5 5 5 9 10 10 10 10 10 10 8 Most Carried 25 | 2 8 10 13 18 25 25 25 25 5 5 5 5 5 5 5 5 5 5 5 5 5 5 5 5 5 5 5 5 5 3 5 5 5 5 5 5 10 10 10 10 9 9 8 8 Average Carried 11 | . 6 9 11 15 22 24 24 5 5 4 4 4 5 5 4 4 4 5 5 5 5 4 4 4 5 5 5 5 4 3 4 5 5 5 5 4 7 8 9 9 8 8 7 5 Final Capacity 25 | 8 10 25 25 25 25 25 25 5 5 5 5 5 5 5 5 5 5 5 5 5 5 5 5 5 5 5 5 5 5 5 5 5 5 5 5 5 10 10 10 10 10 10 10 5 Final Carried 25 | 1 8 10 13 18 25 25 25 5 5 5 4 5 5 5 4 5 5 5 5 5 5 4 5 5 5 5 5 5 3 3 5 5 5 5 5 5 10 10 9 10 9 8 7 2 Class Distribution -------------------- 34% | Mutant 18% | Wizard-Scout 18% | Hacker-Scout 12% | Wizard-Ninja 7% | Scavenger-Mutant 4% | Wizard-Sprinter Dominant Class ---------------- Mutant | -10/Materials Mutant | -10/Mines Mutant | -10/Exiles Mutant | -9/Mines Mutant | -8/Materials Scavenger-Mutant | -8/Garrison Mutant | -8/Materials Sprinter | -7/Factory Hacker-Scout | -7/Waste Hacker-Scout | -7/Factory Hacker-Scout | -7/Lower Caves Hacker-Scout | -7/Lower Caves Hacker-Scout | -7/Zion Hacker-Scout | -6/Proximity Caves Hacker-Scout | -6/Factory Hacker-Scout | -6/Waste Hacker-Scout | -6/Factory Wizard-Scout | -6/Lower Caves Wizard-Scout | -6/Lower Caves Wizard-Scout | -6/Data Miner Wizard-Scout | -5/Proximity Caves Wizard-Scout | -5/Factory Wizard-Scout | -5/Waste Wizard-Scout | -5/Factory Wizard-Scout | -5/Upper Caves Wizard-Scout | -5/Upper Caves Wizard-Scout | -5/Zhirov Wizard-Scout | -4/Proximity Caves Wizard-Scout | -4/Factory Wizard-Scout | -4/Waste Wizard-Ninja | -4/Factory Wizard-Sprinter | -4/Upper Caves Wizard-Sprinter | -4/Upper Caves Wizard-Sprinter | -4/Warlord Wizard-Sprinter | -3/Proximity Caves Wizard-Ninja | -3/Research Wizard-Ninja | -3/Testing Wizard-Ninja | -2/Research Wizard-Ninja | -2/Quarantine Wizard-Ninja | -2/Section 7 Wizard-Assassin | -1/Access Wizard-Sprinter | -1/Garrison Wizard-Ninja | -1/Access Wizard-Ninja | -1/Command Resources | -11 -10 -10 -10 -9 -8 -8 -8 -7 -7 -7 -7 -7 -7 -6 -6 -6 -6 -6 -6 -6 -5 -5 -5 -5 -5 -5 -5 -4 -4 -4 -4 -4 -4 -4 -3 -3 -3 -2 -2 -2 -1 -1 -1 -1 ----------- Run | Yrd Mat Min Exi Min Mat Gar Mat Fac Was Fac Low Low Zio Pro Fac Was Fac Low Low Dat Pro Fac Was Fac Upp Upp Zhi Pro Fac Was Fac Upp Upp War Pro Res Tes Res Qua Sec Acc Gar Acc Com Matter Collected 9529 | 226 337 26 . 195 1159 840 1174 456 . 358 41 . 20 . 375 20 685 32 47 . 413 501 . 426 35 48 . . 515 . 245 . 75 . 59 95 416 55 225 350 . 75 . 5 Remotely 459 | . . . . . . 459 . . . . . . . . . . . . . . . . . . . . . . . . . . . . . . . . . . . . . . Salvage Created 14767 | . 615 . . 95 1860 909 1817 660 . 622 . 78 . . 366 174 1602 32 . . 637 707 . 1231 . . . . 398 . 636 46 . . 53 109 729 194 237 960 . . . . Parts 907 | . 51 . . 8 114 72 117 46 . 53 . 4 . . 30 4 100 1 . . 26 49 . 61 . . . . 31 . 25 2 . . 7 12 36 14 13 31 . . . . Haulers Intercepted 26 | . 1 . . . 6 . 5 4 . . . . . . . . 3 . . . 2 1 . 3 . . . . . . 1 . . . . . . . . . . . . . Recyclers Shooed 17 | . 1 . . . . . 3 . . 1 . . . . 1 . 5 . . . . . . 1 . . . . . . . . . . . . 4 . . 1 . . . . Parts Field Recycled . | . . . . . . . . . . . . . . . . . . . . . . . . . . . . . . . . . . . . . . . . . . . . . Retrieved Matter . | . . . . . . . . . . . . . . . . . . . . . . . . . . . . . . . . . . . . . . . . . . . . . Parts Self-Destructed 38 | . . . . . . . . . . . . 4 . . . . . 1 3 . 22 . . . . . . . . . . 2 . . 6 . . . . . . . . . Prevented 5 | . . . . . . . . . . . . 1 . . . . . . 2 . . . . . 2 . . . . . . . . . . . . . . . . . . . Kills | -11 -10 -10 -10 -9 -8 -8 -8 -7 -7 -7 -7 -7 -7 -6 -6 -6 -6 -6 -6 -6 -5 -5 -5 -5 -5 -5 -5 -4 -4 -4 -4 -4 -4 -4 -3 -3 -3 -2 -2 -2 -1 -1 -1 -1 ------- Run | Yrd Mat Min Exi Min Mat Gar Mat Fac Was Fac Low Low Zio Pro Fac Was Fac Low Low Dat Pro Fac Was Fac Upp Upp Zhi Pro Fac Was Fac Upp Upp War Pro Res Tes Res Qua Sec Acc Gar Acc Com Combat Hostiles Destroyed 400 | . 14 . . 10 27 29 29 4 . 3 . 3 . . 7 . 24 2 . . 13 7 . 11 . . . . 14 . 4 4 . . 5 . 3 . 6 10 . . . 171 Melee 18 | . . . . . . . . 1 . . . 3 . . . . 2 . . . 1 . . . . . . . 3 . 2 . . . . . . . 2 4 . . . . Guns 91 | . 14 . . 6 27 19 25 . . . . . . . . . . . . . . . . . . . . . . . . . . . . . . . . . . . . . AOE 291 | . . . . 4 . 10 4 3 . 3 . . . . 7 . 22 2 . . 12 7 . 11 . . . . 11 . 2 4 . . 5 . 3 . 4 6 . . . 171 Classes Destroyed 25 | . 7 . . 1 5 5 . . . . . . . . . . 1 . . . 2 . . . . . . . . . . . . . . . . . . . . . . 4 Worker 41 | . . . . . 1 . 4 1 . 6 . . . . 1 . 8 . . . . 7 . 4 . . . . 1 . . . . . . . 5 1 . . . . . 2 Builder 36 | . . . . . 1 . 2 5 . 4 . . . . 2 . 9 . . . . 2 . 3 . . . . 2 . 1 . . . . 1 3 1 . . . . . . Tunneler 7 | . 1 . . . . . 1 1 . 1 . . . . . . . . . . . 1 . 1 . . . . . . . . . . . 1 . . . . . . . . Hauler 26 | . 1 . . . 6 . 5 4 . . . . . . . . 3 . . . 2 1 . 3 . . . . . . 1 . . . . . . . . . . . . . Recycler 29 | . 1 . . . 2 . 1 1 . 4 . . . . 1 . 3 . . . . 1 . 4 . . . . . . 1 . . . . . 5 1 . 3 . . . 1 Carrier 18 | . . . . . . . . . . . . . . . . . . . . . . . . . . . . . . . . . . . . . . . . . . . . 18 Mechanic 4 | . . . . . . . . . . . . . . . . . 1 . . . . . . . . . . . 1 . . . . . . . 1 . . . . . . 1 Operator 6 | . 1 . . . . . 3 . . . . . . . . . 1 . . . . . . . . . . . . . . . . . . . . . 1 . . . . . Watcher 64 | . 2 . . . 4 . 5 6 . 3 . . . . 2 . 7 . . . . 7 . 6 . . . . 1 . 5 . . . . 2 3 1 3 5 . . . 2 Swarmer 105 | . 5 . . 4 4 8 6 . . 3 . 3 . . 7 . 4 . . . . 4 . 11 . . . . 10 . . 4 . . 5 . . . 5 4 . . . 18 Cutter 5 | . . . . . . 2 . . . . . . . . . . . . . . . . . . . . . . . . . . . . . . . . . . . . . 3 Saboteur 7 | . . . . . . . . . . . . . . . . . . . . . 1 . . . . . . . . . . . . . . . . . . . . . . 6 Grunt 134 | . 9 . . . 14 5 14 2 . . . . . . . . 19 2 . . 9 2 . . . . . . 4 . 1 . . . . . 3 . . 5 . . . 45 Brawler 12 | . . . . . . . . . . . . . . . . . . . . . . . . . . . . . . . . . . . . . . . . . . . . 12 Duelist 13 | . . . . . 1 . . . . . . . . . . . . . . . . . . . . . . . . . . . . . . . . . . . . . . 12 Protector 7 | . . . . . . . . . . . . . . . . . . . . . 1 . . . . . . . . . . . . . . . . . . . . . . 6 Sentry 24 | . . . . . 7 7 8 . . . . . . . . . . . . . . 1 . . . . . . . . . . . . . . . . . . . . . 1 Demolisher 7 | . . . . . . 1 . . . . . . . . . . . . . . . . . . . . . . . . . . . . . . . . . . . . . 6 Specialist 17 | . . . . . . 2 . . . . . . . . . . . . . . 1 . . . . . . . . . 2 . . . . . . . . . . . . 12 Hunter 29 | . . . . . 1 . 1 1 . . . . . . . . . . . . 1 . . . . . . . . . . . . . . . . . . . . . . 25 Programmer 31 | . . . . . . 3 . 1 . . . . . . . . 1 . . . . . . . . . . . . . 1 . . . . . . . . 1 . . . 24 Behemoth 1 | . . . . . . 1 . . . . . . . . . . . . . . . . . . . . . . . . . . . . . . . . . . . . . . Combat Programmer 1 | . . . . . . . . . . . . . . . . . . . . . . . . . . . . . . . . . . . . . . . . . . . . 1 Assembled 6 | . . . . 6 . . . . . . . . . . . . . . . . . . . . . . . . . . . . . . . . . . . . . . . . Wasp 1 | . . . . . . . . . . . . . . . . . . . . . . . . . . . . . . . . . . . . . . . 1 . . . . . Thug 3 | . . . . . . . . . . . . . . . . 1 . . . . . . . . . . . . . . . . . . . . . . . . . . . 2 Martyr 4 | . . . . . . . . . . . . . . . . 2 . . . . . . . . . . . . . . . . . . . . . . . . . . . 2 Mutant 2 | . . . . . . . . . . . . . . . . . . . . . . . . . . . . . . . . . . . . . . . . . . . . 2 Commander 1 | . . . . . . . . . . . . . . . . . . . . . . . . . . . . . . . . . . . . . . . . . . . . 1 Troll 1 | . . . . . . . . . . . . . . . . . . . . . . . . . . . . . . . . . . . . . . . . . . . . 1 Best Kill Streak 195 | . 6 . . 4 7 11 7 6 . 4 . 2 . . 4 . 15 2 . . 6 13 . 9 . . . . 6 . 3 4 . . 5 3 15 3 5 7 . . . 195 Combat Bots Only 171 | . 5 . . 4 5 11 5 1 . 3 . 2 . . 4 . 11 2 . . 5 7 . 4 . . . . 5 . 2 4 . . 5 . 2 . 5 7 . . . 171 Max Kills in Single Turn 203 | . 2 . . 2 1 3 3 3 . 2 . 1 . . 4 1 3 1 . . 3 3 . 4 . . . . 4 . 2 3 . . 2 1 3 1 2 2 . . . 203 Gunslinging 1 | . 1 . . . . . . . . . . . . . . . . . . . . . . . . . . . . . . . . . . . . . . . . . . . Exploded 171 | . . . . 2 . 3 2 1 . 2 . . . . 4 . 3 1 . . 3 3 . 4 . . . . 4 . 2 3 . . 2 . 1 . 2 2 . . . 171 Melee 1 | . . . . . . . . 1 . . . 1 . . . . 1 . . . 1 . . . . . . . 1 . 1 . . . . . . . 1 1 . . . . Uniques/NPCs Destroyed . | . . . . . . . . . . . . . . . . . . . . . . . . . . . . . . . . . . . . . . . . . . . . . Combat | -11 -10 -10 -10 -9 -8 -8 -8 -7 -7 -7 -7 -7 -7 -6 -6 -6 -6 -6 -6 -6 -5 -5 -5 -5 -5 -5 -5 -4 -4 -4 -4 -4 -4 -4 -3 -3 -3 -2 -2 -2 -1 -1 -1 -1 -------- Run | Yrd Mat Min Exi Min Mat Gar Mat Fac Was Fac Low Low Zio Pro Fac Was Fac Low Low Dat Pro Fac Was Fac Upp Upp Zhi Pro Fac Was Fac Upp Upp War Pro Res Tes Res Qua Sec Acc Gar Acc Com Hostile Shots Fired 1218 | . 52 . . 20 118 211 112 34 . 14 8 37 . . 22 . 59 3 23 . 9 59 . 33 7 8 . . 45 . 68 2 2 . 4 4 50 6 25 111 2 59 . 11 Missed 537 | . 17 . . 6 31 71 33 15 . 10 5 14 . . 15 . 38 1 12 . 4 20 . 15 4 6 . . 21 . 33 1 2 . 2 2 28 6 14 63 1 39 . 8 Damage Taken 12015 | . 345 . . 203 1207 1731 1123 223 . 123 23 348 . . 93 . 444 131 99 . 101 652 . 293 99 40 . . 409 . 670 12 . . 43 39 434 . 253 882 26 405 114 1450 Core 2768 | . 27 . . 34 121 165 79 105 . 96 23 148 . . 9 . 127 38 51 . 40 120 . 88 54 . . . 119 . 146 . . . . . 81 . 117 204 . 64 16 696 Absorbed by Shields 755 | . . . . . 124 488 34 . . . . . . . . . . . . . . . . . . . . . 76 . 33 . . . . . . . . . . . . . Redirected to Shielding 444 | . . . . . . . . . . . . . . . . . . . . . . . . . . . . . . . 64 . . . 19 19 39 . . 152 . 151 . . Ignored by Resistances 32 | . . . . . . 14 18 . . . . . . . . . . . . . . . . . . . . . . . . . . . . . . . . . . . . . Regen/Repaired (Parts) 2435 | . . . . . . . 11 . . 32 . . . . 119 7 211 . . . . 331 . 225 . . . . 116 . 280 . . 9 . . 149 . 200 381 . 364 . . Core Remaining (%) 68 | 100 . . . 75 . . 33 . . . . . . 46 . . . . . . 68 . . . . . . 73 . . . . . . 76 . 93 . . 75 . . . 47 Volleys Fired 503 | . 51 . . 17 121 77 110 7 . 3 . . . . 3 . 33 6 . . 15 7 . 6 . . . . 9 . 2 3 . . 3 . 16 . 3 7 . . . 4 Largest 2 | . 2 . . 2 2 2 2 1 . 1 . . . . 1 . 1 1 . . 1 1 . 1 . . . . 1 . 1 1 . . 1 . 1 . 1 1 . . . 1 Hottest 90 | . 40 . . 40 50 58 58 39 . 39 . . . . 45 . 43 43 . . 90 43 . 43 . . . . 43 . 43 43 . . 43 . 43 . 43 88 . . . 43 Shots Fired 862 | . 102 . . 29 242 141 220 7 . 3 . . . . 3 . 33 7 . . 15 7 . 6 . . . . 9 . 2 3 . . 3 . 16 . 3 7 . . . 4 Gun 712 | . 102 . . 24 242 128 215 . . . . . . . . . . . . . . . . . . . . . . . . . . . . . . . . 1 . . . . Cannon 1 | . . . . . . . . . . . . . . . . . . . . . 1 . . . . . . . . . . . . . . . . . . . . . . . Launcher 149 | . . . . 5 . 13 5 7 . 3 . . . . 3 . 33 7 . . 14 7 . 6 . . . . 9 . 2 3 . . 3 . 16 . 3 6 . . . 4 Special . | . . . . . . . . . . . . . . . . . . . . . . . . . . . . . . . . . . . . . . . . . . . . . Kinetic 711 | . 102 . . 24 242 128 215 . . . . . . . . . . . . . . . . . . . . . . . . . . . . . . . . . . . . . Thermal 3 | . . . . . . . . . . . . . . . . . . . . . 1 . . . . . . . . . . . . . . . . . . 1 . . . 1 Explosive 148 | . . . . 5 . 13 5 7 . 3 . . . . 3 . 33 7 . . 14 7 . 6 . . . . 9 . 2 3 . . 3 . 16 . 3 6 . . . 3 Electromagnetic . | . . . . . . . . . . . . . . . . . . . . . . . . . . . . . . . . . . . . . . . . . . . . . Robot Hit Streak 21 | . 11 . . 5 21 21 13 2 . 4 . . . . 2 . 6 3 . . 4 4 . 2 . . . . 1 . 2 5 . . . . 2 . 3 2 . . . . Robot Miss Streak 6 | . 6 . . 2 3 3 4 1 . . . . . . 6 . 3 1 . . 3 3 . 2 . . . . 2 . . . . . . . 2 . . 2 . . . . Penetration Max . | . . . . . . . . . . . . . . . . . . . . . . . . . . . . . . . . . . . . . . . . . . . . . Secondary Targets 8 | . 2 . . 2 1 1 2 . . . . . . . . . . . . . . . . . . . . . . . . . . . . . . . . . . . . . Max Gunslinging Chain 1 | . 1 . . 1 1 1 1 . . . . . . . . . . . . . . . . . . . . . . . . . . . . . . . . . . . . . Shots Hit Robots 840 | . 57 . . 16 182 94 143 31 . 29 . 8 . 2 12 10 53 2 . . 12 30 . 37 . . . . 23 . 23 3 . . . 6 16 5 11 34 1 . . . Core Hits 801 | . 29 . . 19 76 54 81 24 . 19 . 3 . . 19 5 107 6 . . 43 34 . 28 . . . . 26 . 12 5 . . 11 3 31 1 10 27 . . . 128 Critical Kills 2 | . 1 . . . . . 1 . . . . . . . . . . . . . . . . . . . . . . . . . . . . . . . . . . . . . Critical Parts Destroyed 4 | . . . . . . 1 3 . . . . . . . . . . . . . . . . . . . . . . . . . . . . . . . . . . . . . Critical Strikes 29 | . 1 . . . . 1 4 1 . 2 . 1 . . . 1 4 . . . . 1 . 3 . . . . 2 . 4 . . . . . . . 1 2 1 . . . Destroy 6 | . 1 . . . . 1 4 . . . . . . . . . . . . . . . . . . . . . . . . . . . . . . . . . . . . . Sever 23 | . . . . . . . . 1 . 2 . 1 . . . 1 4 . . . . 1 . 3 . . . . 2 . 4 . . . . . . . 1 2 1 . . . Melee Attacks 738 | . . 3 . . . 12 5 62 . 47 4 13 . 2 38 10 70 . 1 . 9 97 . 85 1 3 . 1 46 . 63 . . . . 13 20 7 22 86 5 1 7 5 Impact 18 | . . 3 . . . 12 3 . . . . . . . . . . . . . . . . . . . . . . . . . . . . . . . . . . . . . Slashing 707 | . . . . . . . . 60 . 47 4 13 . 2 36 10 70 . 1 . 9 94 . 85 1 3 . 1 42 . 63 . . . . 13 20 7 22 86 5 1 7 5 Piercing . | . . . . . . . . . . . . . . . . . . . . . . . . . . . . . . . . . . . . . . . . . . . . . Sneak Attacks 115 | . . . . . . . 2 11 . 18 . . . 1 4 10 15 . . . . 12 . 13 . . . . 7 . 3 . . . . 2 6 4 2 5 . . . . Combat Hostiles 4 | . . . . . . . . . . . . . . . . . . . . . . . . . . . . . 4 . . . . . . . . . . . . . . . Follow-up Attacks . | . . . . . . . . . . . . . . . . . . . . . . . . . . . . . . . . . . . . . . . . . . . . . Damage Inflicted 300411 | . 718 . . 592 3028 2553 3135 2321 . 1945 . 255 . 104 963 627 7470 491 . . 2585 2364 . 3342 . . . . 2461 . 1507 359 . . 616 521 3052 606 1221 3539 57 . . 253979 Guns 8174 | . 690 . . 192 3011 1713 2568 . . . . . . . . . . . . . . . . . . . . . . . . . . . . . . . . . . . . . Cannons . | . . . . . . . . . . . . . . . . . . . . . . . . . . . . . . . . . . . . . . . . . . . . . Explosions 274363 | . . . . 391 . 828 531 788 . 349 . . . . 505 . 5649 491 . . 2353 912 . 1096 . . . . 1666 . 146 359 . . 616 . 2099 . 493 1112 . . . 253979 Melee 17772 | . . . . . . . . 1533 . 1596 . 255 . 104 458 627 1821 . . . 232 1452 . 2246 . . . . 795 . 1361 . . . . 521 953 606 728 2427 57 . . . Ramming 102 | . 28 . . 9 17 12 36 . . . . . . . . . . . . . . . . . . . . . . . . . . . . . . . . . . . . . Kinetic 8174 | . 690 . . 192 3011 1713 2568 . . . . . . . . . . . . . . . . . . . . . . . . . . . . . . . . . . . . . Thermal 255067 | . . . . . . . . 162 . . . . . . . . 386 . . . . . . . . . . . 540 . . . . . . . . . . . . . . 253979 Explosive 19210 | . . . . 391 . 828 531 626 . 349 . . . . 505 . 5177 491 . . 2353 912 . 1096 . . . . 1126 . 146 359 . . 616 . 2099 . 493 1112 . . . . Electromagnetic 86 | . . . . . . . . . . . . . . . . . 86 . . . . . . . . . . . . . . . . . . . . . . . . . . . Impact . | . . . . . . . . . . . . . . . . . . . . . . . . . . . . . . . . . . . . . . . . . . . . . Slashing 17772 | . . . . . . . . 1533 . 1596 . 255 . 104 458 627 1821 . . . 232 1452 . 2246 . . . . 795 . 1361 . . . . 521 953 606 728 2427 57 . . . Piercing . | . . . . . . . . . . . . . . . . . . . . . . . . . . . . . . . . . . . . . . . . . . . . . Highest Corruption 10 | . . . . . . . . . 7 7 . . . . . . 1 1 1 1 2 2 6 10 10 10 10 10 . . 3 3 3 3 . . . . 1 . . . . . Average Corruption 4 | . . . . . . . . . 7 3 . . . . . . 1 1 1 1 1 1 6 8 10 10 10 10 . . 1 3 3 3 . . . . 1 . . . . . Corruption Purged 10 | . . . . . . . . . . 7 . . . . . . . . . . . 2 . . . . . . . . . . . . . . . . 1 . . . . . Corruption Blocked 15 | . . . . . . . . . . . . . . . . . . . . . . . . . . . . . . . . . . . . . . . . . . . . 15 Effects 107 | . . . . . . . . . . 22 . . . . . . 7 1 1 . 4 3 1 46 4 6 2 4 . . 2 2 2 . . . . . . . . . . . Message Errors 25 | . . . . . . . . . . 5 . . . . . . 2 . . . 1 1 . 9 2 . . 2 . . 1 1 1 . . . . . . . . . . . Matter Fused 31 | . . . . . . . . . . 6 . . . . . . 1 . . . 1 2 . 15 2 2 1 1 . . . . . . . . . . . . . . . . Heat Flow Errors 14 | . . . . . . . . . . 3 . . . . . . . . 1 . 1 . 1 5 . 1 1 . . . . . 1 . . . . . . . . . . . Energy Discharges 10 | . . . . . . . . . . . . . . . . . 1 . . . 1 . . 5 . . . 1 . . 1 1 . . . . . . . . . . . . Parts Rejected 1 | . . . . . . . . . . . . . . . . . . . . . . . . 1 . . . . . . . . . . . . . . . . . . . . Parts Fused 3 | . . . . . . . . . . . . . . . . . . . . . . . . 2 . 1 . . . . . . . . . . . . . . . . . . Data Loss (minor) 12 | . . . . . . . . . . 7 . . . . . . . . . . . . . 4 . 1 . . . . . . . . . . . . . . . . . . Data Loss (major) 5 | . . . . . . . . . . . . . . . . . 3 . . . . . . 2 . . . . . . . . . . . . . . . . . . . . Misfires 1 | . . . . . . . . . . . . . . . . . . 1 . . . . . . . . . . . . . . . . . . . . . . . . . . Alerts 3 | . . . . . . . . . . 1 . . . . . . . . . . . . . 1 . 1 . . . . . . . . . . . . . . . . . . Misdirections 2 | . . . . . . . . . . . . . . . . . . . . . . . . 2 . . . . . . . . . . . . . . . . . . . . Overload Shots . | . . . . . . . . . . . . . . . . . . . . . . . . . . . . . . . . . . . . . . . . . . . . . Overflow Damage 31282 | . . . . 17 . 42 2 374 . 317 . 13 . 30 86 83 564 13 . . 2 310 . 510 . . . . 189 . 230 30 . . 13 61 467 304 268 678 . . 40 26639 Projectiles . | . . . . . . . . . . . . . . . . . . . . . . . . . . . . . . . . . . . . . . . . . . . . . Explosions 27463 | . . . . 17 . 42 2 7 . 7 . . . . 9 . 175 13 . . . . . 66 . . . . 58 . . 30 . . 13 . 250 . 75 20 . . 40 26639 Melee 3819 | . . . . . . . . 367 . 310 . 13 . 30 77 83 389 . . . 2 310 . 444 . . . . 131 . 230 . . . . 61 217 304 193 658 . . . . Knockbacks 1 | . 1 . . . . . . . . . . . . . . . . . . . . . . . . . . . . . . . . . . . . . . . . . . . Impact 1 | . 1 . . . . . . . . . . . . . . . . . . . . . . . . . . . . . . . . . . . . . . . . . . . Kinetic . | . . . . . . . . . . . . . . . . . . . . . . . . . . . . . . . . . . . . . . . . . . . . . Secondary . | . . . . . . . . . . . . . . . . . . . . . . . . . . . . . . . . . . . . . . . . . . . . . Self-Inflicted Damage 1835 | . . . . . . 16 80 . . 73 . . . . 44 . . 20 . . . . . . . . . . 67 . 58 . . . . . 75 . . 28 . . 114 1260 Shots 17 | . . . . . . 1 3 . . 2 . . . . 3 . . 1 . . . . . . . . . . 1 . 1 . . . . . 2 . . 1 . . 1 1 Rammed 16 | . 7 . . 2 1 2 4 . . . . . . . . . . . . . . . . . . . . . . . . . . . . . . . . . . . . . Targets Rammed 18 | . 7 . . 2 2 2 5 . . . . . . . . . . . . . . . . . . . . . . . . . . . . . . . . . . . . . Kicked . | . . . . . . . . . . . . . . . . . . . . . . . . . . . . . . . . . . . . . . . . . . . . . Crushed 2 | . . . . . 1 . 1 . . . . . . . . . . . . . . . . . . . . . . . . . . . . . . . . . . . . . Highest Temperature 434 | . 23 . . 24 76 177 222 3 . 172 . . . . 82 . 31 12 175 . 265 85 245 283 364 150 222 3 164 434 200 . 189 67 160 32 54 117 222 215 198 198 198 198 Average Temperature 54 | . 6 . . 15 21 43 54 3 . 80 . . . . 38 . 9 8 73 . 93 16 27 34 97 32 64 2 59 129 57 . 69 28 61 9 16 33 55 95 97 167 127 106 Received Heat Transfer 1903 | . 150 . . 40 531 118 489 36 . . . 9 . . . . 126 . 36 . 36 54 . 63 9 . . . 32 . 21 . . . . . 90 . 18 36 . 9 . . Effects 9 | . . . . . . . . . . . . . . . . . . . . . 2 . . 2 5 . . . . . . . . . . . . . . . . . . . Energy Bleed 2 | . . . . . . . . . . . . . . . . . . . . . . . . 2 . . . . . . . . . . . . . . . . . . . . Interference 5 | . . . . . . . . . . . . . . . . . . . . . 2 . . . 3 . . . . . . . . . . . . . . . . . . . Matter Decay 1 | . . . . . . . . . . . . . . . . . . . . . . . . . 1 . . . . . . . . . . . . . . . . . . . Damage (minor) 1 | . . . . . . . . . . . . . . . . . . . . . . . . . 1 . . . . . . . . . . . . . . . . . . . Siege Activations . | . . . . . . . . . . . . . . . . . . . . . . . . . . . . . . . . . . . . . . . . . . . . . Robots Corrupted . | . . . . . . . . . . . . . . . . . . . . . . . . . . . . . . . . . . . . . . . . . . . . . Combat Hostiles . | . . . . . . . . . . . . . . . . . . . . . . . . . . . . . . . . . . . . . . . . . . . . . Parts Fried 3 | . . . . . . . . . . . . . . . . . . . . . . . . . . . . . . . . . . . . . . . 3 . . . . . Impact Corruptions . | . . . . . . . . . . . . . . . . . . . . . . . . . . . . . . . . . . . . . . . . . . . . . Robots Melted . | . . . . . . . . . . . . . . . . . . . . . . . . . . . . . . . . . . . . . . . . . . . . . Combat Hostiles . | . . . . . . . . . . . . . . . . . . . . . . . . . . . . . . . . . . . . . . . . . . . . . Parts Melted . | . . . . . . . . . . . . . . . . . . . . . . . . . . . . . . . . . . . . . . . . . . . . . Heat Transferred 1020 | . . . . . . . . 100 . . . . . . . . 250 . . . . . . . . . . . 400 . . . . . . . . . . . . . . 270 Parts Sabotaged 4 | . . . . . . . . . . . . . . . . . . . . . . . . . . . . . . . . . . . . . . . . . . . . 4 Parts Stolen 1 | . . . . . . . . . . . 1 . . . . . . . . . . . . . . . . . . . . . . . . . . . . . . . . . Parts Stripped . | . . . . . . . . . . . . . . . . . . . . . . . . . . . . . . . . . . . . . . . . . . . . . Power Chain Reactions . | . . . . . . . . . . . . . . . . . . . . . . . . . . . . . . . . . . . . . . . . . . . . . Alert | -11 -10 -10 -10 -9 -8 -8 -8 -7 -7 -7 -7 -7 -7 -6 -6 -6 -6 -6 -6 -6 -5 -5 -5 -5 -5 -5 -5 -4 -4 -4 -4 -4 -4 -4 -3 -3 -3 -2 -2 -2 -1 -1 -1 -1 ------- Run | Yrd Mat Min Exi Min Mat Gar Mat Fac Was Fac Low Low Zio Pro Fac Was Fac Low Low Dat Pro Fac Was Fac Upp Upp Zhi Pro Fac Was Fac Upp Upp War Pro Res Tes Res Qua Sec Acc Gar Acc Com Peak Influence 936 | . 183 22 . 90 196 936 578 468 208 265 . . . . 242 43 688 . . . . 537 83 517 . . . . 769 96 496 . . . . 216 576 182 368 564 431 552 431 275 Initial 456 | . . 7 . . 35 13 456 225 163 145 . . . . . 7 17 . . . . 226 38 58 . . . . 450 96 67 . . . . 74 121 142 66 169 338 352 331 275 Average 206 | . 81 3 . 8 91 555 198 331 180 144 . . . . 127 23 283 . . . . 158 52 308 . . . . 343 96 198 . . . . 174 313 85 252 326 352 387 362 72 Maximum Alert Level 5 | . . . . . . 3 2 2 1 1 . . . . 1 . 2 . . . . 2 . 2 . . . . 3 . 2 . . . . 1 2 . 1 2 2 2 2 5 Low Security (%) 56 | 100 100 100 . 100 100 7 45 3 79 75 . . . . 83 100 43 . . . . 72 100 11 . . . . 15 100 56 . . . . 83 28 100 27 17 . . . 57 Level 1 29 | . . . . . . 8 47 78 20 24 . . . . 16 . 22 . . . . 22 . 78 . . . . 52 . 38 . . . . 16 39 . 72 47 97 75 84 1 Level 2 11 | . . . . . . 53 7 18 . . . . . . . . 33 . . . . 5 . 10 . . . . 30 . 5 . . . . . 31 . . 34 2 25 15 . Level 3 2 | . . . . . . 30 . . . . . . . . . . . . . . . . . . . . . . . . . . . . . . . . . . . . . . Level 4 . | . . . . . . . . . . . . . . . . . . . . . . . . . . . . . . . . . . . . . . . . . . . . . Level 5 . | . . . . . . . . . . . . . . . . . . . . . . . . . . . . . . . . . . . . . . . . . . . . 40 High Security . | . . . . . . . . . . . . . . . . . . . . . . . . . . . . . . . . . . . . . . . . . . . . . Max Security . | . . . . . . . . . . . . . . . . . . . . . . . . . . . . . . . . . . . . . . . . . . . . . Squads Dispatched 122 | . 4 1 . 1 4 . 5 7 . 5 . 1 . . 8 . 11 . . . . 15 . 12 . . . . 12 . 10 . . . . 2 3 2 5 10 . . 1 3 Investigation 50 | . 3 . . 1 1 . 2 1 . 2 . . . . 6 . 3 . . . . 9 . 6 . . . . 5 . 5 . . . . 2 2 2 . . . . . . Extermination 14 | . . . . . . . . 2 . . . . . . 1 . . . . . . 2 . 1 . . . . 2 . 2 . . . . . . . 2 2 . . . . Reinforcement 45 | . 1 . . . . . 3 4 . 3 . . . . 1 . 8 . . . . 4 . 5 . . . . 3 . 3 . . . . . 1 . 3 3 . . 1 2 Assault 7 | . . 1 . . . . . . . . . 1 . . . . . . . . . . . . . . . . 2 . . . . . . . . . . 2 . . . 1 Garrison 3 | . . . . . 3 . . . . . . . . . . . . . . . . . . . . . . . . . . . . . . . . . . . . . . . Intercept 3 | . . . . . . . . . . . . . . . . . . . . . . . . . . . . . . . . . . . . . . . . 3 . . . . Searches Triggered 2 | . . . . . . . . . . . . . . . . . 1 . . . . . . . . . . . 1 . . . . . . . . . . . . . . . Construction Impeded 10 | . . . . . . . . 1 . . . . . . . . 2 . . . . 1 . 2 . . . . 2 . 1 . . . . . 1 . . . . . . . Haulers Reinforced 6 | . . . . . . . . 2 . . . . . . . . 1 . . . . 1 . 1 . . . . 1 . . . . . . . . . . . . . . . Active Scanning Responses . | . . . . . . . . . . . . . . . . . . . . . . . . . . . . . . . . . . . . . . . . . . . . . Cargo Convoy Interrupts 6 | . . . . . . . . . . 1 . . . . 1 . 1 . . . . 1 . . . . . . 1 . 1 . . . . . . . . . . . . . Stealth | -11 -10 -10 -10 -9 -8 -8 -8 -7 -7 -7 -7 -7 -7 -6 -6 -6 -6 -6 -6 -6 -5 -5 -5 -5 -5 -5 -5 -4 -4 -4 -4 -4 -4 -4 -3 -3 -3 -2 -2 -2 -1 -1 -1 -1 --------- Run | Yrd Mat Min Exi Min Mat Gar Mat Fac Was Fac Low Low Zio Pro Fac Was Fac Low Low Dat Pro Fac Was Fac Upp Upp Zhi Pro Fac Was Fac Upp Upp War Pro Res Tes Res Qua Sec Acc Gar Acc Com Distress Signals 40 | . 2 . . . 6 . 4 2 . 1 . . . . 2 . 2 . . . . 2 . . . . . . 4 . 3 . . . . . 2 2 . 2 1 . 1 4 Communications Jammed . | . . . . . . . . . . . . . . . . . . . . . . . . . . . . . . . . . . . . . . . . . . . . . Distress Signals . | . . . . . . . . . . . . . . . . . . . . . . . . . . . . . . . . . . . . . . . . . . . . . Times Spotted 641 | . 21 . . 11 38 30 40 20 6 13 6 12 . . 29 . 56 2 9 . 12 37 5 36 2 2 . 5 31 . 48 . 6 . 2 10 25 14 15 44 4 28 4 18 Peak Tracking Total 22 | . 6 . . 4 5 9 5 3 6 3 2 10 . . 6 . 9 2 10 . 7 10 5 5 1 2 . 3 9 . 10 1 4 . 4 4 5 8 6 11 4 22 4 8 Tactical Retreats 88 | . 1 . . . 2 . 1 5 . 3 1 3 . . 4 . 5 . 1 . 2 5 . 12 1 1 . . 6 . 10 . 2 . . 1 6 2 3 6 . 1 . 4 Traps | -11 -10 -10 -10 -9 -8 -8 -8 -7 -7 -7 -7 -7 -7 -6 -6 -6 -6 -6 -6 -6 -5 -5 -5 -5 -5 -5 -5 -4 -4 -4 -4 -4 -4 -4 -3 -3 -3 -2 -2 -2 -1 -1 -1 -1 ------- Run | Yrd Mat Min Exi Min Mat Gar Mat Fac Was Fac Low Low Zio Pro Fac Was Fac Low Low Dat Pro Fac Was Fac Upp Upp Zhi Pro Fac Was Fac Upp Upp War Pro Res Tes Res Qua Sec Acc Gar Acc Com Traps Triggered 34 | . 2 . . . 1 8 . 1 . 1 . . . . 1 . 2 1 . . . 1 . 1 1 . . . 3 . 4 . . . . 3 . . . . . 2 . 2 Indirectly . | . . . . . . . . . . . . . . . . . . . . . . . . . . . . . . . . . . . . . . . . . . . . . Trap Hack Attempts 203 | . . . . . . . 60 . . . . . . . 25 . 44 . . . . 52 . . . . . . 22 . . . . . . . . . . . . . . . Triggered 1 | . . . . . . . . . . . . . . . . . . . . . . 1 . . . . . . . . . . . . . . . . . . . . . . Disarmed 7 | . . . . . . . 3 . . . . . . . . . 4 . . . . . . . . . . . . . . . . . . . . . . . . . . . Reprogrammed 89 | . . . . . . . 5 . . . . . . . 12 . 22 . . . . 23 . 8 . . . . 9 . . . . . . . . . 10 . . . . . Reused 32 | . . . . . . . . . . 3 . . . . 3 . 8 . . . . 4 . 4 . . . . 6 . . . . . . . . . 4 . . . . . Traps Extracted 20 | . . . . . . . 5 . . 2 . . . . 6 . 5 . . . . 2 . . . . . . . . . . . . . . . . . . . . . . Installed 21 | . . . . . . . . . . 5 . . . . 3 . 6 . . . . 4 . . . . . . 3 . . . . . . . . . . . . . . . Triggered 40 | . . . . . . . . . . 3 . 2 . . 3 . 8 . 1 . . 4 . 5 3 . . . 7 . . . . . . . . . 4 . . . . . Most Traps Carried 6 | . . 2 1 1 1 1 6 6 6 6 3 3 3 3 6 6 6 5 5 5 5 5 3 3 3 3 3 3 3 . . . . . . . . . . . . . . . Machines | -11 -10 -10 -10 -9 -8 -8 -8 -7 -7 -7 -7 -7 -7 -6 -6 -6 -6 -6 -6 -6 -5 -5 -5 -5 -5 -5 -5 -4 -4 -4 -4 -4 -4 -4 -3 -3 -3 -2 -2 -2 -1 -1 -1 -1 ---------- Run | Yrd Mat Min Exi Min Mat Gar Mat Fac Was Fac Low Low Zio Pro Fac Was Fac Low Low Dat Pro Fac Was Fac Upp Upp Zhi Pro Fac Was Fac Upp Upp War Pro Res Tes Res Qua Sec Acc Gar Acc Com Machines Disabled 53 | . . . . . 1 . 2 2 . 3 . 1 . . 2 . 8 . . . . 6 . 1 . . . . 5 . . . . . . . 4 . 4 9 . 1 1 3 Max in Single Turn 5 | . . . . . 1 . 1 2 . 2 . 1 . . 2 . 2 . . . . 5 . 1 . . . . 3 . . . . . . . 1 . 1 1 . 1 1 2 Garrison Access 30 | . . . . . . . . 2 . 4 . . . . 4 . 3 . . . . 4 . 4 . . . . 2 . 2 . . . . 1 1 1 1 1 . . . . Energy Cycler 1 | . . . . . . . . . . . . . . . . . . . . . . . . . . . . . . . . . . . . . . . . . . . 1 . Machines Repaired . | . . . . . . . . . . . . . . . . . . . . . . . . . . . . . . . . . . . . . . . . . . . . . Machines Dismantled . | . . . . . . . . . . . . . . . . . . . . . . . . . . . . . . . . . . . . . . . . . . . . . Machines Sabotaged . | . . . . . . . . . . . . . . . . . . . . . . . . . . . . . . . . . . . . . . . . . . . . . Overloaded Fab Kills . | . . . . . . . . . . . . . . . . . . . . . . . . . . . . . . . . . . . . . . . . . . . . . Hacking | -11 -10 -10 -10 -9 -8 -8 -8 -7 -7 -7 -7 -7 -7 -6 -6 -6 -6 -6 -6 -6 -5 -5 -5 -5 -5 -5 -5 -4 -4 -4 -4 -4 -4 -4 -3 -3 -3 -2 -2 -2 -1 -1 -1 -1 --------- Run | Yrd Mat Min Exi Min Mat Gar Mat Fac Was Fac Low Low Zio Pro Fac Was Fac Low Low Dat Pro Fac Was Fac Upp Upp Zhi Pro Fac Was Fac Upp Upp War Pro Res Tes Res Qua Sec Acc Gar Acc Com Machines Accessed 310 | . 9 . 2 1 10 3 14 12 . 22 1 . . . 29 . 24 1 . 4 1 31 . 28 . 1 5 . 20 . 23 1 1 3 . 7 14 8 14 15 1 . . 5 Terminals 165 | . 7 . . . 8 3 10 7 . 8 . . . . 13 . 13 . . . 1 15 . 12 . . . . 10 . 13 . . . . 5 9 5 9 12 . . . 5 Fabricators 38 | . . . . . . . . 1 . 4 . . . . 6 . 3 . . . . 6 . 5 . . . . 5 . 4 . . . . . 2 2 . . . . . . Repair Stations 30 | . 1 . . . . . 1 . . 2 . . . . 4 . 4 . . . . 4 . 4 . . . . 2 . 4 . . . . . 2 . 2 . . . . . Recycling Units 11 | . 1 . . . . . 2 2 . 1 . . . . 1 . . . . . . 2 . 1 . . . . 1 . . . . . . . . . . . . . . . Scanalyzers 13 | . . . . . 1 . . . . 3 . . . . 1 . 1 . . . . . . 2 . . . . . . . . . . . 1 . . 2 2 . . . . Garrison Access 33 | . . . . . 1 . 1 2 . 4 . . . . 4 . 3 . . . . 4 . 4 . . . . 2 . 2 . . . . 1 1 1 1 1 1 . . . Total Hacks 912 | . 25 . 2 1 32 10 39 30 . 53 1 . . . 84 . 90 1 . 31 1 100 . 83 . 5 19 . 61 . 69 1 1 7 . 22 39 17 40 34 1 . . 13 Successful 671 | . 8 . 2 1 13 3 21 13 . 39 1 . . . 58 . 71 1 . 31 1 83 . 69 . 5 19 . 54 . 50 1 1 7 . 14 28 11 31 27 1 . . 7 Failed 238 | . 16 . . . 18 7 18 17 . 14 . . . . 26 . 19 . . . . 17 . 13 . . . . 7 . 19 . . . . 8 11 6 9 7 . . . 6 Catastrophic 28 | . 1 . . . 4 2 4 3 . . . . . . 3 . 1 . . . . 1 . 1 . . . . 1 . 1 . . . . 1 1 2 . 2 . . . . Database Lockouts 3 | . 1 . . . 1 . . . . . . . . . . . . . . . . . . 1 . . . . . . . . . . . . . . . . . . . . Manual 389 | . 17 . 1 . 19 3 18 15 . 20 . . . . 31 . 49 . . . . 42 . 27 . . . . 32 . 36 . . 1 . 15 21 8 13 16 . . . 5 Terminals 525 | . 22 . . . 28 10 30 18 . 28 . . . . 45 . 58 . . . 1 48 . 44 . . . . 32 . 39 . . . . 19 27 11 24 28 . . . 13 Fabricators 120 | . . . . . . . . 4 . 5 . . . . 17 . 10 . . . . 27 . 15 . . . . 18 . 12 . . . . . 7 5 . . . . . . Repair Stations 103 | . 2 . . . . . 5 . . 4 . . . . 11 . 12 . . . . 18 . 13 . . . . 8 . 15 . . . . . 4 . 11 . . . . . Recycling Units 17 | . 1 . . . . . 2 5 . 2 . . . . 2 . . . . . . 3 . 1 . . . . 1 . . . . . . . . . . . . . . . Scanalyzers 32 | . . . . . 2 . . . . 8 . . . . 2 . 4 . . . . . . 5 . . . . . . . . . . . 2 . . 4 5 . . . . Garrison Access 46 | . . . . . 2 . 2 3 . 6 . . . . 7 . 6 . . . . 4 . 5 . . . . 2 . 3 . . . . 1 1 1 1 1 1 . . . Terminal Hacks 317 | . 4 . 2 1 8 1 13 2 . 11 1 . . . 16 . 35 1 . 31 1 26 . 29 . 5 19 . 23 . 18 1 1 7 . 6 14 5 15 16 . . . 5 Record 38 | . . . 1 . . . . . . . . . . . 1 . 1 . . 11 1 . . . . 5 7 . 1 . . . . 7 . . 1 . 1 1 . . . . Part Schematic 25 | . . . . . 1 . . . . . . . . . 2 . 1 . . 11 . 2 . 1 . . 4 . 1 . . . . . . . 1 1 . . . . . . Robot Schematic 8 | . . . . . . . . . . 1 . . . . . . . . . 6 . . . . . . . . . . 1 . . . . . . . . . . . . . Robot Analysis 15 | . 2 . . . 1 . 1 . . . . . . . . . 1 . . . . . . 1 . . 4 . 1 . . . . . . 1 . . 3 . . . . . Prototype ID Bank 20 | . . . . . 1 . . 1 . 1 . . . . . . 1 . . 3 . . . 5 . . 4 . . . 3 . . . . . 1 . . . . . . . Open Door 12 | . . . . 1 . . . . . . 1 . . . . . . 1 . . . . . . . . . . . . . 1 1 . . . 1 . 1 5 . . . . Level Access Points 3 | . . . . . . . . . . . . . . . . . . . . . . 1 . . . . . . . . 1 . . . . . . . . . . . . 1 Branch Access Points 8 | . . . . . . . . . . . . . . . 1 . 1 . . . . 1 . 1 . . . . 1 . 1 . . . . . 1 1 . . . . . . Emergency Access Points 1 | . . . . . . . . . . . . . . . . . 1 . . . . . . . . . . . . . . . . . . . . . . . . . . . Machine Index 12 | . . . . . . . . . . 1 . . . . 1 . 1 . . . . 1 . 1 . . . . 1 . 1 . . . . 1 1 1 1 1 . . . . Terminal Index 2 | . 1 . . . . . . . . . . . . . . . 1 . . . . . . . . . . . . . . . . . . . . . . . . . . . Alert Level 15 | . . . . . 1 . 2 . . 1 . . . . 1 . 2 . . . . 1 . 1 . . . . 1 . 1 . . . . . 2 . . 1 . . . 1 Unreport Threat 33 | . . . . . 2 . 3 . . 1 . . . . 2 . 7 . . . . 3 . 2 . . . . 5 . 1 . . . . . 2 1 1 1 . . . 2 Locate Traps 15 | . 1 . . . 1 . 4 . . 1 . . . . 2 . 1 . . . . . . 1 . . . . . . . . . . . 1 1 1 . 1 . . . . Reprogram Traps 9 | . . . . . . . . . . . . . . . 1 . 3 . . . . 1 . 2 . . . . . . . . . . . . . . 2 . . . . . Dispatch Records 1 | . . . . . . . . . . . . . . . . . . . . . . . . 1 . . . . . . . . . . . . . . . . . . . . Security Status 2 | . . . . . . . . . . . . . . . . . . . . . . 1 . 1 . . . . . . . . . . . . . . . . . . . . Patrol Status 7 | . . . . . . . . . . . . . . . 1 . 1 . . . . 1 . . . . . . 1 . 2 . . . . 1 . . . . . . . . Investigation Status 1 | . . . . . . . . . . . . . . . . . . . . . . 1 . . . . . . . . . . . . . . . . . . . . . . Recall Investigation 25 | . . . . . . . . . . . . . . . 1 . 3 . . . . 7 . 4 . . . . 4 . 4 . . . . . 2 . . . . . . . Recall Extermination 12 | . . . . . . . . . . . . . . . 1 . . . . . . 2 . 1 . . . . 2 . 2 . . . . . . . 2 2 . . . . Recall Reinforcements 17 | . . . . . . . . . . . . . . . . . 5 . . . . 1 . 4 . . . . 2 . . . . . . . 1 . 3 1 . . . . Recall Assault 4 | . . . . . . . . . . . . . . . . . 1 . . . . . . . . . . . 2 . . . . . . . . . . 1 . . . . Hauler Manifests 11 | . . . . . 1 . 2 1 . 2 . . . . . . . . . . . 1 . 2 . . . . 1 . 1 . . . . . . . . . . . . . Registered Components 2 | . . . . . . . . . . . . . . . . . . . . . . 1 . 1 . . . . . . . . . . . . . . . . . . . . Registered Prototypes 1 | . . . . . . . . . . 1 . . . . . . . . . . . . . . . . . . . . . . . . . . . . . . . . . . Zone Layout 15 | . . . . . . . 1 . . 2 . . . . 2 . 4 . . . . 1 . . . . . . . . . . . . . 2 . . 1 2 . . . . Patrol Navigation 1 | . . . . . . 1 . . . . . . . . . . . . . . . . . . . . . . . . . . . . . . . . . . . . . . Derelict Proto ID Bank 1 | . . . 1 . . . . . . . . . . . . . . . . . . . . . . . . . . . . . . . . . . . . . . . . . Disengage Seal 1 | . . . . . . . . . . . . . . . . . . . . . . . . . . . . . . . . . . . . . . . . . . . . 1 Fabricator Hacks 75 | . . . . . . . . 2 . 2 . . . . 14 . 5 . . . . 14 . 11 . . . . 11 . 8 . . . . . 4 4 . . . . . . Network Status 4 | . . . . . . . . . . 1 . . . . 1 . . . . . . 1 . 1 . . . . . . . . . . . . . . . . . . . . Load Schematic 33 | . . . . . . . . 1 . . . . . . 7 . 2 . . . . 6 . 4 . . . . 5 . 4 . . . . . 2 2 . . . . . . Build 38 | . . . . . . . . 1 . 1 . . . . 6 . 3 . . . . 7 . 6 . . . . 6 . 4 . . . . . 2 2 . . . . . . Repair Station Hacks 91 | . 1 . . . . . 3 . . 4 . . . . 6 . 12 . . . . 18 . 13 . . . . 7 . 14 . . . . . 4 . 9 . . . . . Scan Component 45 | . 1 . . . . . 2 . . 2 . . . . 3 . 6 . . . . 8 . 6 . . . . 3 . 7 . . . . . 2 . 5 . . . . . Repair 42 | . . . . . . . 1 . . 2 . . . . 3 . 6 . . . . 8 . 6 . . . . 3 . 7 . . . . . 2 . 4 . . . . . Refit 4 | . . . . . . . . . . . . . . . . . . . . . . 2 . 1 . . . . 1 . . . . . . . . . . . . . . . Recycling Unit Hacks 9 | . . . . . . . . 1 . 1 . . . . 2 . . . . . . 3 . 1 . . . . 1 . . . . . . . . . . . . . . . Retrieve Components 9 | . . . . . . . . 1 . 1 . . . . 2 . . . . . . 3 . 1 . . . . 1 . . . . . . . . . . . . . . . Scanalyzer 29 | . . . . . 2 . . . . 5 . . . . 2 . 4 . . . . . . 5 . . . . . . . . . . . 2 . . 4 5 . . . . Insert Component 20 | . . . . . 1 . . . . 3 . . . . 1 . 2 . . . . . . 2 . . . . . . . . . . . 2 . . 4 5 . . . . Analyze 9 | . . . . . 1 . . . . 2 . . . . 1 . 2 . . . . . . 3 . . . . . . . . . . . . . . . . . . . . Garrison Access Hacks 32 | . . . . . 1 . . 2 . 4 . . . . 4 . 3 . . . . 4 . 4 . . . . 2 . 2 . . . . 1 1 1 1 1 1 . . . Unlock Access 2 | . . . . . 1 . . . . . . . . . . . . . . . . . . . . . . . . . . . . . . . . . . . 1 . . . Seal Access 30 | . . . . . . . . 2 . 4 . . . . 4 . 3 . . . . 4 . 4 . . . . 2 . 2 . . . . 1 1 1 1 1 . . . . Unauthorized Hacks 118 | . 3 . . . 2 2 5 6 . 12 . . . . 14 . 12 . . . . 18 . 6 . . . . 10 . 8 . . . . 5 5 1 2 5 . . . 2 Terminals 82 | . 2 . . . 2 2 3 5 . 10 . . . . 12 . 9 . . . . 8 . 3 . . . . 3 . 6 . . . . 5 3 . 2 5 . . . 2 Track 8 | . . . . . . 1 . . . 3 . . . . 1 . . . . . . 1 . . . . . . . . 1 . . . . . . . . 1 . . . . Assimilate 32 | . . . . . . . 1 1 . 1 . . . . 6 . 6 . . . . 4 . 2 . . . . 1 . 2 . . . . 2 1 . 1 3 . . . 1 Botnet 31 | . 1 . . . 1 1 1 3 . 5 . . . . 3 . 2 . . . . 2 . 1 . . . . 2 . 2 . . . . 2 2 . 1 1 . . . 1 Operators 11 | . 1 . . . 1 . 1 1 . 1 . . . . 2 . 1 . . . . 1 . . . . . . . . 1 . . . . 1 . . . . . . . . Fabricators 32 | . . . . . . . . . . 2 . . . . 2 . 3 . . . . 10 . 3 . . . . 7 . 2 . . . . . 2 1 . . . . . . Report 2 | . . . . . . . . . . . . . . . . . . . . . . 1 . . . . . . 1 . . . . . . . . . . . . . . . Prioritize 18 | . . . . . . . . . . . . . . . 1 . 2 . . . . 5 . 2 . . . . 4 . 2 . . . . . 1 1 . . . . . . Liberate 7 | . . . . . . . . . . 2 . . . . 1 . . . . . . 2 . . . . . . 1 . . . . . . . 1 . . . . . . . Haulers 5 | . . . . . . . . . . . . . . . . . 1 . . . . 2 . 1 . . . . 1 . . . . . . . . . . . . . . . Repair Stations . | . . . . . . . . . . . . . . . . . . . . . . . . . . . . . . . . . . . . . . . . . . . . . Recycling Units 4 | . 1 . . . . . 2 1 . . . . . . . . . . . . . . . . . . . . . . . . . . . . . . . . . . . . Reject 1 | . . . . . . . . 1 . . . . . . . . . . . . . . . . . . . . . . . . . . . . . . . . . . . . Tunnel 3 | . 1 . . . . . 2 . . . . . . . . . . . . . . . . . . . . . . . . . . . . . . . . . . . . . Scanalyzers . | . . . . . . . . . . . . . . . . . . . . . . . . . . . . . . . . . . . . . . . . . . . . . Garrison Access . | . . . . . . . . . . . . . . . . . . . . . . . . . . . . . . . . . . . . . . . . . . . . . Data Cores Recovered 1 | . . . . . . . . . . . . . . . . . . . . . . . . . . . . . . . . . . . . . . . . . . . . 1 Used 1 | . . . . . . . . . . . . . . . . . . . . . . . . . . . . . . . . . . . . . . . . . . . . 1 Hacking Detections 205 | . 8 . . . 9 3 11 11 . 14 . . . . 22 . 16 . . . . 18 . 18 . . . . 17 . 18 . . . . 4 8 7 8 9 1 . . 3 Full Trace Events 42 | . . . . . . 1 . 1 . 2 . . . . 6 . 3 . . . . 9 . 6 . . . . 5 . 5 . . . . . 2 2 . . . . . . Feedback Events 5 | . . . . . . . . . . 1 . . . . . . . . . . . 2 . 1 . . . . . . 1 . . . . . . . . . . . . . Corruption 3 | . . . . . . . . . . . . . . . . . . . . . . 1 . 1 . . . . . . 1 . . . . . . . . . . . . . Hackware Fried 2 | . . . . . . . . . . 1 . . . . . . . . . . . 1 . . . . . . . . . . . . . . . . . . . . . . Feedback Blocked . | . . . . . . . . . . . . . . . . . . . . . . . . . . . . . . . . . . . . . . . . . . . . . Robot Schematics Acquired 10 | . . . . . . . . . . 1 . . . . . . . . . 6 . . . . . . . . . . 1 . . . . . . . 2 . . . . . Robots Built 15 | . . . . . . . . . . . . . . . . . . . . . . 3 . 1 . . . . 3 . 8 . . . . . . . . . . . . . Authchips . | . . . . . . . . . . . . . . . . . . . . . . . . . . . . . . . . . . . . . . . . . . . . . Time 617 | . . . . . . . . . . . . . . . . . . . . . . 134 . 76 . . . . 84 . 323 . . . . . . . . . . . . . Total Robot Build Rating 99 | . . . . . . . . . . . . . . . . . . . . . . 12 . 5 . . . . 18 . 64 . . . . . . . . . . . . . Part Schematics Acquired 40 | . . . . . 2 . . . . 1 . . . . 3 . 3 . . 11 . 2 . 3 . . 4 . 1 . . . . . . . 1 1 8 . . . . . Parts Built 38 | . . . . . . . . 1 . 2 . . . . 6 . 4 . . . . 9 . 6 . . . . 6 . . . . . . . 2 2 . . . . . . Authchips . | . . . . . . . . . . . . . . . . . . . . . . . . . . . . . . . . . . . . . . . . . . . . . Time 2049 | . . . . . . . . 36 . 53 . . . . 496 . 186 . . . . 360 . 461 . . . . 290 . . . . . . . 65 102 . . . . . . Total Part Build Rating 250 | . . . . . . . . 3 . 12 . . . . 32 . 28 . . . . 63 . 39 . . . . 43 . . . . . . . 13 17 . . . . . . Parts Repaired 42 | . . . . . . . 1 . . 2 . . . . 3 . 6 . . . . 8 . 6 . . . . 3 . 7 . . . . . 2 . 4 . . . . . Time 1970 | . . . . . . . 136 . . 66 . . . . 124 . 189 . . . . 408 . 253 . . . . 168 . 417 . . . . . 88 . 121 . . . . . Parts Recycled . | . . . . . . . . . . . . . . . . . . . . . . . . . . . . . . . . . . . . . . . . . . . . . Recycled Matter . | . . . . . . . . . . . . . . . . . . . . . . . . . . . . . . . . . . . . . . . . . . . . . Retrieved Matter . | . . . . . . . . . . . . . . . . . . . . . . . . . . . . . . . . . . . . . . . . . . . . . Retrieved Components 26 | . . . . . . . . 3 . 3 . . . . 9 . . . . . . 6 . 3 . . . . 2 . . . . . . . . . . . . . . . Parts Scanalyzed 7 | . . . . . 1 . . . . 1 . . . . 1 . 2 . . . . . . 2 . . . . . . . . . . . . . . . . . . . . Part Schematics Acquired 7 | . . . . . 1 . . . . 1 . . . . 1 . 2 . . . . . . 2 . . . . . . . . . . . . . . . . . . . . Parts Damaged 3 | . . . . . 1 . . . . . . . . . . . 1 . . . . . . 1 . . . . . . . . . . . . . . . . . . . . Bothacking | -11 -10 -10 -10 -9 -8 -8 -8 -7 -7 -7 -7 -7 -7 -6 -6 -6 -6 -6 -6 -6 -5 -5 -5 -5 -5 -5 -5 -4 -4 -4 -4 -4 -4 -4 -3 -3 -3 -2 -2 -2 -1 -1 -1 -1 ------------ Run | Yrd Mat Min Exi Min Mat Gar Mat Fac Was Fac Low Low Zio Pro Fac Was Fac Low Low Dat Pro Fac Was Fac Upp Upp Zhi Pro Fac Was Fac Upp Upp War Pro Res Tes Res Qua Sec Acc Gar Acc Com Used RIF Installer . | . . . . . . . . . . . . . . . . . . . . . . . . . . . . . . . . . . . . . . . . . . . . . Robots Hacked 6 | . . . . . . . 1 2 . . . . . . 1 . . . . . . 2 . . . . . . . . . . . . . . . . . . . . . . Non-combat 6 | . . . . . . . 1 2 . . . . . . 1 . . . . . . 2 . . . . . . . . . . . . . . . . . . . . . . Combat . | . . . . . . . . . . . . . . . . . . . . . . . . . . . . . . . . . . . . . . . . . . . . . Robot Hacks Applied 6 | . . . . . . . 1 2 . . . . . . 1 . . . . . . 2 . . . . . . . . . . . . . . . . . . . . . . parse_system 1 | . . . . . . . . . . . . . . . 1 . . . . . . . . . . . . . . . . . . . . . . . . . . . . . no_distress 2 | . . . . . . . 1 . . . . . . . . . . . . . . 1 . . . . . . . . . . . . . . . . . . . . . . find_chute 3 | . . . . . . . . 2 . . . . . . . . . . . . . 1 . . . . . . . . . . . . . . . . . . . . . . Relay Couplers Released 4 | . . . . . . . . . . . . . . . . . 4 . . . . . . . . . . . . . . . . . . . . . . . . . . . Programmers 4 | . . . . . . . . . . . . . . . . . 4 . . . . . . . . . . . . . . . . . . . . . . . . . . . Fabnet Peak Effective % . | . . . . . . . . . . . . . . . . . . . . . . . . . . . . . . . . . . . . . . . . . . . . . Robots Rewired 3 | . . . . . . . . . . . . . . . . . . . . . . . . . . . . . 3 . . . . . . . . . . . . . . . Allies Hacked 4 | . . . . . . . . . . . . . . . . . . . . . . 1 . . . . . . . . 3 . . . . . . . . . . . . . Hacks Repelled . | . . . . . . . . . . . . . . . . . . . . . . . . . . . . . . . . . . . . . . . . . . . . . Allies | -11 -10 -10 -10 -9 -8 -8 -8 -7 -7 -7 -7 -7 -7 -6 -6 -6 -6 -6 -6 -6 -5 -5 -5 -5 -5 -5 -5 -4 -4 -4 -4 -4 -4 -4 -3 -3 -3 -2 -2 -2 -1 -1 -1 -1 -------- Run | Yrd Mat Min Exi Min Mat Gar Mat Fac Was Fac Low Low Zio Pro Fac Was Fac Low Low Dat Pro Fac Was Fac Upp Upp Zhi Pro Fac Was Fac Upp Upp War Pro Res Tes Res Qua Sec Acc Gar Acc Com Total Allies 73 | . . 1 . . . . . 1 . 1 . . . . 7 19 5 . . . . 7 . 3 . . . . 10 . 13 . . . . 1 1 . 1 3 . . . . Largest Group 21 | . . 1 . . . . . 1 . 1 . . . . 3 21 10 . . . . 5 . 2 . . . . 4 . 7 . . . . 1 1 . 1 2 . . . . Highest-Rated Group 754 | . . 31 . . . . . 26 . 10 . . . . 108 754 345 . . . . 80 . 49 . . . . 203 . 539 . . . . 26 10 . 26 71 . . . . Highest-Rated Ally 82 | . . 31 . . . . . 26 . 10 . . . . 41 50 46 . . . . 26 . 26 . . . . 65 . 82 . . . . 26 10 . 26 45 . . . . Total Orders 36 | . . . . . . . . 1 . 1 . . . . 7 2 6 . . . . 1 . 1 . . . . 1 . 4 . . . . . 3 . 7 2 . . . . STAY 21 | . . . . . . . . . . 1 . . . . 4 1 3 . . . . 1 . 1 . . . . . . 2 . . . . . 2 . 4 2 . . . . FOLLOW 13 | . . . . . . . . . . . . . . . 3 1 3 . . . . . . . . . . . . . 2 . . . . . 1 . 3 . . . . . GUARD 1 | . . . . . . . . . . . . . . . . . . . . . . . . . . . . . 1 . . . . . . . . . . . . . . . EXPLORE 1 | . . . . . . . . 1 . . . . . . . . . . . . . . . . . . . . . . . . . . . . . . . . . . . . Ally Attacks 287 | . . 8 . . . . . . . . . . . . 6 114 56 . . . . 11 . . . . . . 35 . 57 . . . . . . . . . . . . . Total Damage 10851 | . . 151 . . . . . . . . . . . . 141 5502 1463 . . . . 231 . . . . . . 1226 . 2137 . . . . . . . . . . . . . Kills 40 | . . 1 . . . . . . . . . . . . 1 12 6 . . . . 3 . . . . . . 4 . 13 . . . . . . . . . . . . . Allies Corrupted 1 | . . . . . . . . . . . . . . . . . 1 . . . . . . . . . . . . . . . . . . . . . . . . . . . Allies Melted 2 | . . . . . . . . . . . . . . . 1 . . . . . . . . . . . . . 1 . . . . . . . . . . . . . . . Intel | -11 -10 -10 -10 -9 -8 -8 -8 -7 -7 -7 -7 -7 -7 -6 -6 -6 -6 -6 -6 -6 -5 -5 -5 -5 -5 -5 -5 -4 -4 -4 -4 -4 -4 -4 -3 -3 -3 -2 -2 -2 -1 -1 -1 -1 ------- Run | Yrd Mat Min Exi Min Mat Gar Mat Fac Was Fac Low Low Zio Pro Fac Was Fac Low Low Dat Pro Fac Was Fac Upp Upp Zhi Pro Fac Was Fac Upp Upp War Pro Res Tes Res Qua Sec Acc Gar Acc Com Robot Analysis Total 15 | . 2 . . . 1 . 1 . . . . . . . . . 1 . . . . . . 1 . . 4 . 1 . . . . . . 1 . . 3 . . . . . Derelict Logs Recovered 18 | . . 3 . 1 . . . . . . . 1 1 . . . . 1 1 . 1 . . . 3 . . 1 . . . 2 3 . . . . . . . . . . . Drone Launches 1 | . . . . . . . . 1 . . . . . . . . . . . . . . . . . . . . . . . . . . . . . . . . . . . . Drone Recoveries . | . . . . . . . . . . . . . . . . . . . . . . . . . . . . . . . . . . . . . . . . . . . . . Exploration | -11 -10 -10 -10 -9 -8 -8 -8 -7 -7 -7 -7 -7 -7 -6 -6 -6 -6 -6 -6 -6 -5 -5 -5 -5 -5 -5 -5 -4 -4 -4 -4 -4 -4 -4 -3 -3 -3 -2 -2 -2 -1 -1 -1 -1 ------------- Run | Yrd Mat Min Exi Min Mat Gar Mat Fac Was Fac Low Low Zio Pro Fac Was Fac Low Low Dat Pro Fac Was Fac Upp Upp Zhi Pro Fac Was Fac Upp Upp War Pro Res Tes Res Qua Sec Acc Gar Acc Com Turns Passed 32652 | 65 1370 1221 744 1384 2794 1886 4383 1168 34 1338 217 257 332 88 1734 299 1519 222 148 23 350 2377 18 1458 165 121 39 102 1277 9 1402 156 148 145 162 346 565 211 765 1052 137 44 183 194 Spaces Moved 48539 | 39 547 401 232 412 854 639 1547 2323 117 2806 784 649 931 238 3311 400 3401 676 529 78 865 4190 80 3227 787 584 141 271 2778 73 2944 685 727 616 576 760 1329 741 1863 2735 324 334 514 481 Core 11 | 6 . . . . . . . . . . . . . . 5 . . . . . . . . . . . . . . . . . . . . . . . . . . . . . Treads 4665 | 33 547 401 232 412 854 639 1547 . . . . . . . . . . . . . . . . . . . . . . . . . . . . . . . . . . . . . Legs . | . . . . . . . . . . . . . . . . . . . . . . . . . . . . . . . . . . . . . . . . . . . . . Wheels . | . . . . . . . . . . . . . . . . . . . . . . . . . . . . . . . . . . . . . . . . . . . . . Hover . | . . . . . . . . . . . . . . . . . . . . . . . . . . . . . . . . . . . . . . . . . . . . . Flight 43863 | . . . . . . . . 2323 117 2806 784 649 931 238 3306 400 3401 676 529 78 865 4190 80 3227 787 584 141 271 2778 73 2944 685 727 616 576 760 1329 741 1863 2735 324 334 514 481 Fastest Speed 5 | 50 160 160 320 320 240 240 240 29 29 25 23 25 35 35 14 26 14 26 20 29 23 12 21 15 11 19 19 19 5 7 6 21 16 16 18 18 6 7 7 6 15 5 15 5 Average Speed 44 | 143 160 246 320 320 247 242 240 29 29 28 25 34 35 35 28 26 25 26 26 29 29 24 21 20 18 19 19 29 19 11 18 21 20 20 20 21 19 17 16 18 28 11 15 18 Slowest Speed 560 | 160 160 320 320 320 560 243 240 99 29 32 27 35 35 35 100 26 26 29 29 29 94 37 21 26 19 19 19 77 85 16 21 21 21 96 22 22 22 20 17 94 92 15 15 28 Overloaded Moves 364 | . . . . . . . . . . . 2 . . . 23 . 9 . 7 . 26 21 . 13 6 . . . 4 39 11 . . . . . 3 9 18 30 . 119 . 24 Propulsion Burnouts . | . . . . . . . . . . . . . . . . . . . . . . . . . . . . . . . . . . . . . . . . . . . . . Robots Hopped 160 | . . . . . . . . 7 . 5 . . . . 12 . 5 1 . . . 2 . 8 2 . . . 15 . 33 . . . . 1 10 11 9 24 . 5 7 3 Cave-ins Triggered 1 | . . . . . . 1 . . . . . . . . . . . . . . . . . . . . . . . . . . . . . . . . . . . . . . Teleports 1 | . . . . . . . . . . . . . . . . . . . . . . . . . . . . . . . . . . . . . . . . 1 . . . . Exploration Rate (%) 66 | 4 96 84 61 83 73 67 86 53 74 61 86 74 83 51 62 91 69 86 70 68 78 67 68 64 91 89 62 53 60 77 55 82 91 84 81 23 92 20 89 82 14 54 16 24 Regions Visited 44 Branch Regions 23 Pre-discovered Areas 14 | . 1 . 1 1 . . 2 . . . 1 . 1 . . . . . . 1 . . . . 2 . 3 . . . . . 1 . . . . . . . . . . . Known Exits Taken 29 | . . . 1 . 1 . . . . 1 1 1 1 1 . . 1 1 1 1 1 . . 1 1 1 1 1 . . 1 1 1 1 1 1 1 1 1 1 1 . 1 . Unknown Exits Taken 5 | 1 1 1 . 1 . . 1 . . . . . . . . . . . . . . . . . . . . . . . . . . . . . . . . . . . . . Scrap Searched 40 | . . 1 . 2 . . . . . . 2 3 3 . . . . . 4 . . . . . 4 5 . 3 . . . 4 5 . 4 . . . . . . . . . Spaces Dug 308 | . . 2 . . . 9 3 21 . 14 2 1 . . 15 . 19 . 1 . 3 54 . 50 1 3 . 1 14 . 31 . . . 13 4 3 2 4 18 1 . 5 14 Terrain Destroyed 4867 | . . 2 . 50 . 26 35 66 . 19 2 1 . . 67 . 195 68 1 . 179 138 . 79 1 3 . 1 117 . 54 49 . . 42 4 147 2 48 51 1 . 18 3401 Melee 276 | . . 2 . . . 9 3 21 . 14 2 1 . . 15 . 19 . 1 . 2 54 . 42 1 3 . 1 14 . 31 . . . . 4 3 2 4 18 1 . 5 4 Projectile 1 | . . . . . . . . . . . . . . . . . . . . . 1 . . . . . . . . . . . . . . . . . . . . . . . AOE 4590 | . . . . 50 . 17 32 45 . 5 . . . . 52 . 176 68 . . 176 84 . 37 . . . . 103 . 23 49 . . 42 . 144 . 44 33 . . 13 3397 Terrain Rammed . | . . . . . . . . . . . . . . . . . . . . . . . . . . . . . . . . . . . . . . . . . . . . . Walls Destroyed . | . . . . . . . . . . . . . . . . . . . . . . . . . . . . . . . . . . . . . . . . . . . . . Machines Disabled . | . . . . . . . . . . . . . . . . . . . . . . . . . . . . . . . . . . . . . . . . . . . . . Actions | -11 -10 -10 -10 -9 -8 -8 -8 -7 -7 -7 -7 -7 -7 -6 -6 -6 -6 -6 -6 -6 -5 -5 -5 -5 -5 -5 -5 -4 -4 -4 -4 -4 -4 -4 -3 -3 -3 -2 -2 -2 -1 -1 -1 -1 --------- Run | Yrd Mat Min Exi Min Mat Gar Mat Fac Was Fac Low Low Zio Pro Fac Was Fac Low Low Dat Pro Fac Was Fac Upp Upp Zhi Pro Fac Was Fac Upp Upp War Pro Res Tes Res Qua Sec Acc Gar Acc Com Total 57444 | 46 939 628 235 444 1333 828 2040 2703 116 3269 791 662 936 239 4030 578 3881 707 532 77 921 5364 80 3864 798 588 152 289 3427 72 3661 691 727 633 613 922 1568 802 2265 3132 360 329 601 571 Wait 6755 | . 314 216 . 3 283 46 267 260 . 365 2 . . . 617 166 290 24 3 . 19 953 . 519 13 . 1 14 513 . 622 1 1 2 33 146 187 61 351 283 26 . 85 69 Move 48185 | 38 546 400 231 411 854 636 1546 2310 116 2795 783 648 930 237 3288 399 3390 673 528 77 864 4186 79 3211 782 583 140 270 2748 72 2879 684 726 615 575 757 1308 718 1846 2689 324 320 499 474 Hop 150 | . . . . . . . . 6 . 5 . . . . 11 . 5 1 . . . 2 . 7 2 . . . 15 . 31 . . . . 1 10 11 7 21 . 5 7 3 Pick Up 118 | 2 10 3 3 6 18 7 5 . . 5 . 1 1 . 5 1 5 . . . . 7 1 3 . . 1 . 4 . 2 . . 1 . 1 3 2 6 12 1 . 1 1 Fast Attach 146 | 5 2 . . . 10 . 3 6 . 11 . . 2 . 11 . 8 1 . . 2 17 . 9 . 1 5 1 12 . 11 . . 6 . 3 7 1 6 2 1 . . 3 Attach 69 | 1 . . . . 6 6 3 9 . 3 . . . . 4 . 2 . . . . 3 . . . . . . 4 . 1 . . . . 1 2 2 4 8 2 1 2 5 Detach 41 | . . . . . 4 . 3 6 . 2 . . . . 5 . 4 . . . . 1 . 2 . 1 . . 4 . 3 . . . . . 1 . 3 1 . . . 1 Swap 237 | . 3 4 1 4 11 23 22 11 . 15 2 . . . 14 2 10 2 . . 10 21 . 13 . . . 2 17 . 6 3 . 1 2 . 10 . 9 17 1 1 . . Drop 179 | . 6 2 . 1 24 7 11 26 . 13 . . 3 . 6 . 3 . . . 2 14 . 9 . . 5 1 14 . 4 . . 8 . . 4 . 8 6 . . . 2 Fire 503 | . 51 . . 17 121 77 110 7 . 3 . . . . 3 . 33 6 . . 15 7 . 6 . . . . 9 . 2 3 . . 3 . 16 . 3 7 . . . 4 Melee 738 | . . 3 . . . 12 5 62 . 47 4 13 . 2 38 10 70 . 1 . 9 97 . 85 1 3 . 1 46 . 63 . . . . 13 20 7 22 86 5 1 7 5 Ram . | . . . . . . . . . . . . . . . . . . . . . . . . . . . . . . . . . . . . . . . . . . . . . Kick . | . . . . . . . . . . . . . . . . . . . . . . . . . . . . . . . . . . . . . . . . . . . . . Crush 18 | . 7 . . 2 2 2 5 . . . . . . . . . . . . . . . . . . . . . . . . . . . . . . . . . . . . . Escape Stasis 80 | . . . . . . 12 . . . . . . . . . . 11 . . . . . . . . . . . 16 . 36 . . . . . . . . . . 1 . 4 Rewire 1 | . . . . . . . . . . . . . . . . . . . . . . . . . . . . . . . 1 . . . . . . . . . . . . . Trap 224 | . . . . . . . 60 . . 5 . . . . 28 . 50 . . . . 56 . . . . . . 25 . . . . . . . . . . . . . . . Miscellaneous . | . . . . . . . . . . . . . . . . . . . . . . . . . . . . . . . . . . . . . . . . . . . . . Route ------- -11/Scrapyard -10/Materials (discovered 4 exits: [*Mat x3] / [*Min]) -10/Mines (discovered 3 exits: [*Mat x2] / *Exi) -10/Exiles (discovered 2 exits: *Min x2) -9/Mines (discovered 2 exits: *Mat x2) -8/Materials (discovered 3 exits: *Fac x2 / Gar) -8/Garrison (discovered 3 exits: *Mat x3) -8/Materials (discovered 2 exits: *Fac x2) -7/Factory (discovered 3 exits: *Fac x2 / *Low) -7/Waste -7/Factory (discovered 5 exits: *Fac x3 / *Low x2) -7/Lower Caves -7/Lower Caves (discovered 2 exits: *Fac / *Zio) -7/Zion -6/Proximity Caves -6/Factory (discovered 4 exits: *Fac x2 / *Low x2) -6/Waste -6/Factory (discovered 4 exits: *Fac x2 / *Low x2) -6/Lower Caves -6/Lower Caves -6/Data Miner -5/Proximity Caves -5/Factory (discovered 6 exits: *Fac x4 / *Upp x2) -5/Waste -5/Factory (discovered 4 exits: *Fac x2 / *Upp x2) -5/Upper Caves -5/Upper Caves (discovered 2 exits: *Fac / *Zhi) -5/Zhirov -4/Proximity Caves -4/Factory (discovered 5 exits: *Res / *Upp x2 / *Ext x2) -4/Waste -4/Factory (discovered 8 exits: *Res x4 / *Upp x2 / *Ext x2) -4/Upper Caves -4/Upper Caves (discovered 2 exits: *Res / *War) -4/Warlord -3/Proximity Caves -3/Research (discovered 5 exits: *Res x2 / Arm / *Tes x2) -3/Testing -2/Research (discovered 3 exits: *Acc / *Qua x2) -2/Quarantine (discovered 2 exits: *Acc / *Sec) -2/Section 7 -1/Access -1/Garrison (discovered 3 exits: *Acc x3) -1/Access -1/Command (discovered 2 exits: *Sur x2) To Epsilon Eridani History --------- Turn | Location | Event 18 | -11/Scrapyard | Discovered new exit (range 15) 66 | -11/Scrapyard | Entered Materials 123 | -10/Materials | Central database locked down 265 | -10/Materials | Discovered new exit (range 11) 301 | -10/Materials | Build established: Mutant 405 | -10/Materials | Discovered new exit (range 16) 694 | -10/Materials | Discovered new exit (range 12) 1297 | -10/Materials | Discovered new exit (range 10) 1436 | -10/Materials | Entered Mines 1505 | -10/Mines | Found a hidden stash of uninstalled traps 1566 | -10/Mines | Discovered new exit (range 11) 1632 | -10/Mines | Found a damaged Exp. Sensor Array with a note attached 1636 | -10/Mines | Found Prototype Device 1637 | -10/Mines | Identified Exp. Sensor Array 1657 | -10/Mines | Learned Materials emergency access door positions 1779 | -10/Mines | Discovered new exit (range 7) 1907 | -10/Mines | Deemed a non-threat by the Exiles lab entrance 2148 | -10/Mines | Met a Derelict testing a Signal Generator 2403 | -10/Mines | Discovered new exit (range 5) 2657 | -10/Mines | Entered Exiles 2658 | -10/Exiles | Identified exit to Mines 2736 | -10/Exiles | Met 8R-AWN 2790 | -10/Exiles | Met EX-HEX 2883 | -10/Exiles | Met EX-BIN 2928 | -10/Exiles | Aligned with FarCom system 2931 | -10/Exiles | Given EX-Vault access code 3005 | -10/Exiles | Opened EX-Vault 3021 | -10/Exiles | Found Supersonic Drone Bay 3031 | -10/Exiles | Found Modified TNC 3035 | -10/Exiles | Found Cloak of Protection 3100 | -10/Exiles | Warned to stay clear of 0b10 Research branches 3196 | -10/Exiles | Met EX-DEC 3267 | -10/Exiles | Learned location of Zion (-7) 3401 | -10/Exiles | Stole three prototypes: Modified TNC, Cloak of Protection, Supersonic Drone Bay 3401 | -10/Exiles | Entered Mines 3434 | -9/Mines | Met a Derelict bent on vengeance 3521 | -9/Mines | Discovered new exit (range 12) 3538 | -9/Mines | Assembled infested the area 3543 | -9/Mines | Assisted by a Guerilla fighting off Assembled 4297 | -9/Mines | Met a Derelict shopkeep closing up shop 4689 | -9/Mines | Received a Rocket Launcher from a helpful Derelict 4744 | -9/Mines | Discovered new exit (range 10) 4785 | -9/Mines | Entered Materials 4785 | -8/Materials | Evolved 4 slots: Propulsion x1, Utility x3 5637 | -8/Materials | Discovered new exit (range 16) 5969 | -8/Materials | Garrison activated, responded to threat 6539 | -8/Materials | Discovered new exit (range 16) 7565 | -8/Materials | Central database locked down 7579 | -8/Materials | Identified exit to Garrison 7579 | -8/Materials | Entered Garrison 7677 | -8/Garrison | Triggered checkpoint 7711 | -8/Garrison | Triggered checkpoint 7763 | -8/Garrison | Triggered checkpoint 7764 | -8/Garrison | Spotted B-75 Beast 7767 | -8/Garrison | Destroyed 11 combat bots 7869 | -8/Garrison | Destroyed B-75 Beast 8120 | -8/Garrison | Discovered new exit (range 10) 8142 | -8/Garrison | Attempted to access garrison exit controls, blocked by remote lockdown 8243 | -8/Garrison | Triggered checkpoint 8513 | -8/Garrison | Triggered checkpoint 8563 | -8/Garrison | Build established: Scavenger-Mutant 8696 | -8/Garrison | Discovered new exit (range 10) 8718 | -8/Garrison | Attempted to access garrison exit controls, blocked by remote lockdown 9065 | -8/Garrison | Crushed by falling debris 9065 | -8/Garrison | Core integrity fell below 50% 9201 | -8/Garrison | Discovered new exit (range 11) 9349 | -8/Garrison | Triggered checkpoint 9465 | -8/Garrison | Entered Materials 11143 | -8/Materials | Build established: Mutant 11763 | -8/Materials | Discovered new exit (range 10) 12259 | -8/Materials | Repaired Broken Exp. Sensor Array 12580 | -8/Materials | Discovered new exit (range 3) 13848 | -8/Materials | Entered Factory 13848 | -7/Factory | Evolved 2 slots: Utility x2 13850 | -7/Factory | FarCom data flow suspended 14014 | -7/Factory | Fabricated Hacking Suite (x1) 14135 | -7/Factory | Discovered new exit (range 5) 14137 | -7/Factory | Identified exit to Lower Caves 14150 | -7/Factory | Build established: Sprinter 14177 | -7/Factory | Discovered new exit (range 6) 14180 | -7/Factory | Identified exit to Factory 14440 | -7/Factory | Discovered exit to Factory (range 8) 14827 | -7/Factory | Build established: Hacker-Scout 15016 | -7/Factory | Sucked down chute 15016 | -7/Factory | Entered Waste 15019 | -7/Waste | Spotted C-40 Crusher 15019 | -7/Waste | Spotted C-40 Crusher 15022 | -7/Waste | Spotted C-40 Crusher 15031 | -7/Waste | EMP discharged 15036 | -7/Waste | Spotted C-40 Crusher 15041 | -7/Waste | Spotted C-40 Crusher 15045 | -7/Waste | Spotted C-40 Crusher 15047 | -7/Waste | Discovered new exit (range 11) 15050 | -7/Waste | Identified exit to Factory 15050 | -7/Waste | Entered Factory 15071 | -7/Factory | Hacking Suite fried by hacking feedback 15100 | -7/Factory | Discovered exit to Factory (range 12) 15119 | -7/Factory | Discovered exit to Lower Caves (range 13) 15522 | -7/Factory | Discovered exit to Factory (range 13) 15654 | -7/Factory | Discovered exit to Factory (range 3) 15761 | -7/Factory | Repaired Mic. Nuclear Core 15853 | -7/Factory | Discovered exit to Lower Caves (range 16) 15886 | -7/Factory | Fabricated Adv. System Restoration Module? 16079 | -7/Factory | Cargo convoy interrupted 16359 | -7/Factory | Repaired Mic. Nuclear Core 16388 | -7/Factory | Entered Lower Caves 16388 | -7/Lower Caves | Spotted N5-PCO(f) 16388 | -7/Lower Caves | Spotted 5O-LFB(f) 16391 | -7/Lower Caves | Encountered a Master Thief 16432 | -7/Lower Caves | Encountered a Warlord checkpoint 16469 | -7/Lower Caves | Discovered new exit (range 9) 16481 | -7/Lower Caves | Cloak of Protection stolen by Master Thief 16485 | -7/Lower Caves | Met a Warlord Commander 16487 | -7/Lower Caves | Learned location of Warlord (-4) 16490 | -7/Lower Caves | Warlord Commander delivered Encrypted Comm Array 16559 | -7/Lower Caves | Spotted B-75 Beast 16605 | -7/Lower Caves | Identified exit to Lower Caves 16605 | -7/Lower Caves | Entered another Lower Caves area 16667 | -7/Lower Caves | Lost 3 parts (1p2n) 16786 | -7/Lower Caves | Attracted the attention of an 0b10 outpost 16794 | -7/Lower Caves | Core integrity fell below 50% 16855 | -7/Lower Caves | Discovered new exit (range 6) 16857 | -7/Lower Caves | Identified exit to Zion 16862 | -7/Lower Caves | Entered Zion 16882 | -7/Zion | Learned Factory emergency access door positions 16888 | -7/Zion | Given the Hacking Drone Bay 16898 | -7/Zion | Discovered new exit (range 12) 16944 | -7/Zion | Found Prototype Launcher 16944 | -7/Zion | Identified Rocket Array 17113 | -7/Zion | Given A8's code to call for help 17193 | -7/Zion | Identified exit to Proximity Caves 17194 | -7/Zion | Entered Proximity Caves 17252 | -6/Proximity Caves | Spotted B-75 Beast 17258 | -6/Proximity Caves | Discovered exit to Factory (range 12) 17282 | -6/Proximity Caves | Entered Factory 17282 | -6/Factory | Evolved 2 slots: Propulsion x1, Utility x1 17311 | -6/Factory | Discovered new exit (range 16) 17563 | -6/Factory | Identified exit to Lower Caves 17643 | -6/Factory | Repaired Rocket Array 17661 | -6/Factory | Fabricated Cld. VTOL Module? 17707 | -6/Factory | Fabricated Cld. VTOL Module? 17731 | -6/Factory | Discovered new exit (range 14) 17767 | -6/Factory | Identified exit to Factory 17787 | -6/Factory | Discovered exit to Factory (range 15) 17860 | -6/Factory | Fabricated Cld. VTOL Module? 17966 | -6/Factory | Fabricated Adv. Hacking Suite? 18324 | -6/Factory | Cargo convoy interrupted 18339 | -6/Factory | Found Prototype Hackware 18344 | -6/Factory | Found Prototype Device 18344 | -6/Factory | Identified Exp. Thermal Shield 18360 | -6/Factory | Identified Exp. Hacking Suite 18453 | -6/Factory | Repaired Exp. Sensor Array 18568 | -6/Factory | Repaired Cld. VTOL Module 18673 | -6/Factory | Spotted B-75 Beast 18751 | -6/Factory | Fabricated Exp. Hacking Suite (x1) 18863 | -6/Factory | Fabricated Exp. Hacking Suite (x1) 19016 | -6/Factory | Manually triggered Chute Trap 19016 | -6/Factory | Sucked down chute 19016 | -6/Factory | Entered Waste 19022 | -6/Waste | Spotted C-40 Crusher 19041 | -6/Waste | Warlord forces began an assault 19053 | -6/Waste | Spotted C-40 Crusher 19058 | -6/Waste | Spotted C-40 Crusher 19071 | -6/Waste | 2 allies followed down the chute 19073 | -6/Waste | Spotted C-40 Crusher 19077 | -6/Waste | Spotted C-40 Crusher 19080 | -6/Waste | Allies destroyed C-40 Crusher 19082 | -6/Waste | Spotted C-40 Crusher 19083 | -6/Waste | Allies destroyed C-40 Crusher 19096 | -6/Waste | Allies destroyed C-40 Crusher 19112 | -6/Waste | Discovered new exit (range 21) 19126 | -6/Waste | Lost 8 allies 19195 | -6/Waste | Identified exit to Factory 19216 | -6/Waste | Murdered 3 allies 19315 | -6/Waste | Entered Factory 19315 | -6/Factory | Accompanied by 10 allies 19413 | -6/Factory | Discovered exit to Factory (range 16) 19440 | -6/Factory | Fabricated Q-thruster? 19537 | -6/Factory | Discovered exit to Factory (range 12) 19695 | -6/Factory | Spotted B-75 Beast 19817 | -6/Factory | Lost 5 allies 19932 | -6/Factory | Destroyed 11 combat bots 19980 | -6/Factory | Repaired Lgt. Fission Core 20007 | -6/Factory | Repaired Lrn. Missile Launcher 20049 | -6/Factory | Repaired Cld. VTOL Module 20449 | -6/Factory | Cargo convoy interrupted 20475 | -6/Factory | Repaired Imp. Trap Extractor? 20684 | -6/Factory | Fabricated Exp. Hacking Suite? 20705 | -6/Factory | Fabricated Exp. Utility Shielding? 20715 | -6/Factory | Search patrols dispatched 20766 | -6/Factory | Repaired Cld. VTOL Module 20792 | -6/Factory | Repaired Lgt. Fission Core 20834 | -6/Factory | Entered Lower Caves 20880 | -6/Lower Caves | Encountered a Warlord checkpoint 20881 | -6/Lower Caves | Learned 4 Factory zone layouts 20988 | -6/Lower Caves | Build established: Wizard-Scout 20999 | -6/Lower Caves | Spotted B-75 Beast 21048 | -6/Lower Caves | Discovered new exit (range 9) 21056 | -6/Lower Caves | Identified exit to Lower Caves 21056 | -6/Lower Caves | Entered another Lower Caves area 21056 | -6/Lower Caves | Spotted Y1-JNT(f) 21058 | -6/Lower Caves | Encountered a Master Thief 21061 | -6/Lower Caves | Spotted DX-FFG(f) 21062 | -6/Lower Caves | Encountered a Master Thief 21064 | -6/Lower Caves | Encountered a Warlord checkpoint 21137 | -6/Lower Caves | Learned Factory trap positions 21154 | -6/Lower Caves | Attracted the attention of an 0b10 checkpoint 21202 | -6/Lower Caves | Discovered new exit (range 8) 21204 | -6/Lower Caves | Identified exit to Data Miner 21204 | -6/Lower Caves | Entered Data Miner 21204 | -6/Data Miner | Discovered new exit (range 7) 21210 | -6/Data Miner | Met Data Miner 21215 | -6/Data Miner | Learned location of Section 7 (-2) 21215 | -6/Data Miner | Acquired the access code to Warlord's prototype stash 21220 | -6/Data Miner | Received God Mode back door access code from Data Miner 21227 | -6/Data Miner | Identified exit to Proximity Caves 21227 | -6/Data Miner | Entered Proximity Caves 21238 | -5/Proximity Caves | Unaware initiated a cargo recovery operation 21313 | -5/Proximity Caves | Learned 8 Factory zone layouts 21546 | -5/Proximity Caves | Discovered exit to Factory (range 14) 21577 | -5/Proximity Caves | Entered Factory 21577 | -5/Factory | Evolved 2 slots: Power x1, Propulsion x1 21578 | -5/Factory | Identified exit to Factory 21578 | -5/Factory | Identified exit to Upper Caves 21579 | -5/Factory | Loaded intel: 121 trap records 21616 | -5/Factory | Fabricated Q-thruster (x2) 21678 | -5/Factory | Repaired Lgt. Fission Core 21759 | -5/Factory | Repaired Cld. VTOL Module 21799 | -5/Factory | Repaired Scythe 21850 | -5/Factory | Repaired Lrn. Missile Launcher 21856 | -5/Factory | Discovered exit to Upper Caves (range 15) 21889 | -5/Factory | Discovered exit to Factory (range 4) 22042 | -5/Factory | Exp. Hacking Suite fried by hacking feedback 22208 | -5/Factory | Fabricated Exp. Signal Interpreter (x1) 22302 | -5/Factory | Destroyed 7 combat bots 22319 | -5/Factory | Lost 6 parts (1p4n1u) 22507 | -5/Factory | Fabricated Exp. Hacking Suite (x1) 22626 | -5/Factory | Fabricated B-48 Gladiator (x3) 22722 | -5/Factory | Fabricated Adv. Surge Thruster (x2) 22760 | -5/Factory | Spotted B-75 Beast 22969 | -5/Factory | Fabricated Adv. Trap Extractor (x2) 23096 | -5/Factory | Repaired Power Sword 23147 | -5/Factory | Repaired Lrn. Missile Launcher 23211 | -5/Factory | Repaired Adv. Surge Thruster 23436 | -5/Factory | Fabricated Exp. Hacking Suite (x1) 23514 | -5/Factory | Repaired Imp. Datajack 23846 | -5/Factory | Cargo convoy interrupted 23954 | -5/Factory | Manually triggered Chute Trap 23954 | -5/Factory | Sucked down chute 23954 | -5/Factory | Entered Waste 23962 | -5/Waste | Spotted C-40 Crusher 23964 | -5/Waste | Spotted C-40 Crusher 23966 | -5/Waste | Spotted C-40 Crusher 23967 | -5/Waste | Spotted C-40 Crusher 23968 | -5/Waste | Discovered new exit (range 16) 23969 | -5/Waste | EMP discharged 23969 | -5/Waste | Spotted C-40 Crusher 23972 | -5/Waste | Identified exit to Factory 23972 | -5/Waste | Entered Factory 24085 | -5/Factory | Fabricated M-22 Extractor? 24117 | -5/Factory | Repaired Adv. Surge Thruster 24169 | -5/Factory | Fabricated Exp. Utility Shielding? 24319 | -5/Factory | Repaired Adv. Surge Thruster? 24434 | -5/Factory | Discovered exit to Factory (range 15) 24465 | -5/Factory | System corruption reached 10% 24600 | -5/Factory | Fabricated Lgt. Quantum Reactor? 24735 | -5/Factory | Fabricated Cld. VTOL Module? 24761 | -5/Factory | Central database locked down 24864 | -5/Factory | Repaired Broken Cld. Nuclear Pulse Thruster 24901 | -5/Factory | Repaired Cld. VTOL Module 24927 | -5/Factory | Repaired Lrn. Missile Launcher 24977 | -5/Factory | Fabricated Cld. Nuclear Pulse Thruster? 25179 | -5/Factory | Fabricated Cld. Nuclear Pulse Thruster? 25213 | -5/Factory | Discovered exit to Factory (range 14) 25378 | -5/Factory | Repaired Cld. Nuclear Pulse Thruster 25430 | -5/Factory | Entered Upper Caves 25436 | -5/Upper Caves | Learned location of Armory (-3) 25500 | -5/Upper Caves | Learned Factory stockpile data 25506 | -5/Upper Caves | Encountered a Warlord checkpoint 25576 | -5/Upper Caves | Discovered new exit (range 12) 25594 | -5/Upper Caves | Identified exit to Upper Caves 25595 | -5/Upper Caves | Entered another Upper Caves area 25608 | -5/Upper Caves | Discovered exit to Factory (range 10) 25622 | -5/Upper Caves | Learned Research terminal intel 25622 | -5/Upper Caves | Learned Armory stockpile data 25622 | -5/Upper Caves | Learned Extension stockpile data 25622 | -5/Upper Caves | Learned location of 1 exit from Research 25709 | -5/Upper Caves | Discovered new exit (range 8) 25716 | -5/Upper Caves | Identified exit to Zhirov 25716 | -5/Upper Caves | Entered Zhirov 25716 | -5/Zhirov | Discovered new exit (range 3) 25720 | -5/Zhirov | Met Zhirov 25724 | -5/Zhirov | Learned location of Command (-1) 25727 | -5/Zhirov | Zhirov requested help retrieving the SGEMP Prototype 25731 | -5/Zhirov | Found Alien Artifact 25731 | -5/Zhirov | Identified Integrated Reactor 25731 | -5/Zhirov | Installed Integrated Reactor, increased core energy generation (+10) 25746 | -5/Zhirov | Found Alien Artifact 25755 | -5/Zhirov | Identified exit to Proximity Caves 25755 | -5/Zhirov | Entered Proximity Caves 25772 | -4/Proximity Caves | Spotter reported a threat 25773 | -4/Proximity Caves | Spotter reported a threat 25773 | -4/Proximity Caves | Learned Research terminal intel 25850 | -4/Proximity Caves | Spotter reported a threat 25853 | -4/Proximity Caves | Discovered exit to Factory (range 8) 25857 | -4/Proximity Caves | Entered Factory 25857 | -4/Factory | Evolved 2 slots: Propulsion x1, Utility x1 26098 | -4/Factory | Fabricated Cld. Nuclear Pulse Thruster (x1) 26107 | -4/Factory | Search patrols dispatched 26198 | -4/Factory | Identified exit to Upper Caves 26198 | -4/Factory | Identified exit to Extension 26245 | -4/Factory | Spotted B-86 Titan 26303 | -4/Factory | Fabricated Adv. Surge Thruster (x2) 26330 | -4/Factory | Fabricated B-60 Warrior (x3) 26377 | -4/Factory | Lost 3 allies 26431 | -4/Factory | Fabricated Graviton Reactor (x1) 26568 | -4/Factory | Build established: Wizard-Sprinter 26607 | -4/Factory | First assault squad dispatched 26710 | -4/Factory | Fabricated Graviton Reactor (x1) 26724 | -4/Factory | Fabricated Exp. Hacking Suite (x1) 26778 | -4/Factory | Discovered new exit (range 15) 26866 | -4/Factory | Repaired Adv. Cloaking Device 26912 | -4/Factory | Repaired Chainsword 26933 | -4/Factory | Build established: Wizard-Scout 26963 | -4/Factory | Repaired Lrn. Missile Launcher 27037 | -4/Factory | Cargo convoy interrupted 27058 | -4/Factory | Found Prototype Launcher 27058 | -4/Factory | Identified Com. Tesla Bomb Launcher 27063 | -4/Factory | Found Prototype Processor 27063 | -4/Factory | Identified Spectral Analyzer 27134 | -4/Factory | Manually triggered Chute Trap 27134 | -4/Factory | Sucked down chute 27134 | -4/Factory | Entered Waste 27136 | -4/Waste | Spotted C-40 Crusher 27141 | -4/Waste | Spotted C-40 Crusher 27142 | -4/Waste | Spotted C-40 Crusher 27142 | -4/Waste | Spotted C-40 Crusher 27142 | -4/Waste | Spotted C-40 Crusher 27142 | -4/Waste | Discovered new exit (range 10) 27143 | -4/Waste | Identified exit to Factory 27143 | -4/Waste | Entered Factory 27249 | -4/Factory | Found Prototype Slashing Weapon 27249 | -4/Factory | Identified Molecular Scythe 27261 | -4/Factory | Discovered new exit (range 7) 27465 | -4/Factory | Repaired Cld. Nuclear Pulse Thruster 27511 | -4/Factory | Repaired Cld. Nuclear Pulse Thruster 27606 | -4/Factory | Repaired Cld. Nuclear Pulse Thruster 27669 | -4/Factory | Repaired Adv. Surge Thruster 27712 | -4/Factory | Identified exit to Research 27942 | -4/Factory | Fabricated P-80 Master? 28005 | -4/Factory | Build established: Wizard-Ninja 28019 | -4/Factory | Fabricated P-80 Master? 28066 | -4/Factory | Fabricated P-80 Master? 28071 | -4/Factory | Fabricated P-80 Master? 28187 | -4/Factory | Cargo convoy interrupted 28197 | -4/Factory | Spotted Striker 28220 | -4/Factory | Repaired Graviton Reactor? 28243 | -4/Factory | Found Prototype Device 28243 | -4/Factory | Identified Exp. Force Field 28252 | -4/Factory | Lost 7 allies 28364 | -4/Factory | Repaired Adv. Surge Thruster? 28458 | -4/Factory | Repaired Adv. Surge Thruster? 28545 | -4/Factory | Entered Upper Caves 28558 | -4/Upper Caves | Learned Research stockpile data 28579 | -4/Upper Caves | Learned Research emergency access door positions 28652 | -4/Upper Caves | Discovered new exit (range 15) 28655 | -4/Upper Caves | Identified exit to Upper Caves 28701 | -4/Upper Caves | Entered another Upper Caves area 28706 | -4/Upper Caves | Discovered exit to Research (range 8) 28826 | -4/Upper Caves | Spotted GT-QU0(f) 28826 | -4/Upper Caves | Spotted LR-P6F(f) 28826 | -4/Upper Caves | Spotted 11-EUR(f) 28827 | -4/Upper Caves | Encountered a Master Thief 28827 | -4/Upper Caves | Encountered a Master Thief 28827 | -4/Upper Caves | Encountered a Master Thief 28830 | -4/Upper Caves | Discovered new exit (range 8) 28832 | -4/Upper Caves | Learned 4 Research zone layouts 28845 | -4/Upper Caves | Build established: Wizard-Sprinter 28849 | -4/Upper Caves | Identified exit to Warlord 28849 | -4/Upper Caves | Entered Warlord 28856 | -4/Warlord | System corruption cleaned by Quarantine Array 28927 | -4/Warlord | Learned 4 Armory zone layouts 28927 | -4/Warlord | Learned 4 Research zone layouts 28927 | -4/Warlord | Learned Quarantine trap positions 28927 | -4/Warlord | Learned Testing stockpile data 28928 | -4/Warlord | Learned Armory security intel 28928 | -4/Warlord | Learned Armory scanalyzer intel 28928 | -4/Warlord | Learned Research fabricator intel 28945 | -4/Warlord | Met Warlord 28947 | -4/Warlord | Opened Warlord's prototype stash 28952 | -4/Warlord | Found Prototype Device 28952 | -4/Warlord | Identified Exp. Cloaking Device 28968 | -4/Warlord | Found Prototype Hackware 28970 | -4/Warlord | Warlord's base attacked by MAIN.C 28989 | -4/Warlord | Discovered new exit (range 15) 28994 | -4/Warlord | Identified exit to Proximity Caves 28994 | -4/Warlord | Entered Proximity Caves 29068 | -3/Proximity Caves | Discovered exit to Research (range 10) 29156 | -3/Proximity Caves | Entered Research 29156 | -3/Research | Evolved 2 slots: Utility x2 29157 | -3/Research | Identified exit to Armory 29158 | -3/Research | Identified exit to Research 29159 | -3/Research | Identified exit to Testing 29162 | -3/Research | Loaded intel: 21 terminal locations 29163 | -3/Research | Loaded intel: 4 fabricator locations 29188 | -3/Research | Discovered exit to Research (range 14) 29221 | -3/Research | Found Spectral Analyzer 29315 | -3/Research | Identified Ghost Barrier 29315 | -3/Research | Identified Transdimensional Reconstructor 29323 | -3/Research | Spotted B-86 Titan 29451 | -3/Research | Build established: Wizard-Ninja 29502 | -3/Research | Entered Testing 29540 | -3/Testing | Found Prototype Device 29540 | -3/Testing | Identified 2N-1CE's Frost Array 29838 | -3/Testing | Fabricated Graviton Reactor (x1) 29863 | -3/Testing | Discovered exit to Research (range 5) 29899 | -3/Testing | Repaired Exp. Utility Shielding? 30024 | -3/Testing | Repaired Adv. Datajack? 30044 | -3/Testing | Fabricated Stasis Canceller? 30067 | -3/Testing | Entered Research 30067 | -2/Research | Warlord forces began assault on 0b10 30067 | -2/Research | Evolved 2 slots: Propulsion x1, Utility x1 30068 | -2/Research | Loaded intel: 23 terminal locations 30074 | -2/Research | Identified exit to Quarantine 30078 | -2/Research | Discovered new exit (range 10) 30153 | -2/Research | Fabricated Adv. Phase Shifter? 30177 | -2/Research | Research machine network offline 30192 | -2/Research | Fabricated Graviton Reactor? 30277 | -2/Research | Spotted B-90 Cyclops 30278 | -2/Research | Entered Quarantine 30279 | -2/Quarantine | Loaded intel: 24 trap records 30317 | -2/Quarantine | Repaired Graviton Reactor 30382 | -2/Quarantine | Found Alien Artifact 30382 | -2/Quarantine | Identified Phase Redirector 30457 | -2/Quarantine | Cryocooling Duct disabled 30472 | -2/Quarantine | Ambient heat levels rising (+20) 30472 | -2/Quarantine | Non-combat units ordered to evacuate 30479 | -2/Quarantine | Found Alien Artifact 30496 | -2/Quarantine | Identified Core Reset Matrix 30590 | -2/Quarantine | Discovered new exit (range 9) 30604 | -2/Quarantine | Found Alien Artifact 30609 | -2/Quarantine | Identified Subatomic Replicator 30734 | -2/Quarantine | Spotted Alpha 7 30748 | -2/Quarantine | Found Alien Launcher 30760 | -2/Quarantine | Identified Sigix Terminator 30761 | -2/Quarantine | Used Subatomic Replicator to create Alien Launcher 30764 | -2/Quarantine | Identified Supercharged Sigix Terminator 30933 | -2/Quarantine | Repaired Cld. Nuclear Pulse Thruster 31008 | -2/Quarantine | Repaired Lrn. Missile Launcher 31025 | -2/Quarantine | Repaired Imp. Ion Engine 31032 | -2/Quarantine | Spotted Fortress 31042 | -2/Quarantine | Discovered new exit (range 5) 31043 | -2/Quarantine | Identified exit to Section 7 31043 | -2/Quarantine | Entered Section 7 31061 | -2/Section 7 | Found Alien Artifact 31104 | -2/Section 7 | Discovered new exit (range 11) 31117 | -2/Section 7 | Identified Integrity Redistributor 31123 | -2/Section 7 | Found Integrity Redistributor 31144 | -2/Section 7 | Spotted S7 Guard 31162 | -2/Section 7 | Found Alien Artifact 31168 | -2/Section 7 | Identified Core Regenerator 31168 | -2/Section 7 | Used Core Regenerator, restored core integrity (+117) 31172 | -2/Section 7 | Found Prototype Device 31173 | -2/Section 7 | Identified Femtoactuators 31184 | -2/Section 7 | Spotted Alpha 7 31184 | -2/Section 7 | Spotted Alpha 7 31311 | -2/Section 7 | Spotted S7 Guard 31438 | -2/Section 7 | Destroyed 7 combat bots 31517 | -2/Section 7 | Spotted S7 Guard 31521 | -2/Section 7 | Found Alien Artifact 31551 | -2/Section 7 | Identified Core Membrane 31551 | -2/Section 7 | Installed Core Membrane, gained immunity to corruption 31743 | -2/Section 7 | Spotted B-90 Cyclops 31793 | -2/Section 7 | First assault squad dispatched 31865 | -2/Section 7 | Spotted S7 Guard 31869 | -2/Section 7 | Found Alien Artifact 31890 | -2/Section 7 | Identified Integrated Thermoelectric Network 31890 | -2/Section 7 | Installed Integrated Thermoelectric Network, gained heat-energy exchange potential 31910 | -2/Section 7 | Found Integrity Redistributor 31911 | -2/Section 7 | Used Integrity Redistributor, redistributed integrity from core (-71) 31938 | -2/Section 7 | Spotted B-99 Colossus 31949 | -2/Section 7 | Found Alien Artifact 31949 | -2/Section 7 | Identified LRC Inertial Stabilizer 31949 | -2/Section 7 | Installed LRC Inertial Stabilizer, increased mass support (+10) 31952 | -2/Section 7 | Found Alien Artifact 31952 | -2/Section 7 | Identified LRC Energy Well 31952 | -2/Section 7 | Installed LRC Energy Well, increased energy storage capacity (+250) 31977 | -2/Section 7 | Spotted Executioner 31977 | -2/Section 7 | Spotted Striker 31977 | -2/Section 7 | Spotted Striker 31990 | -2/Section 7 | Found Alien Artifact 31991 | -2/Section 7 | Identified Terrabomb 31991 | -2/Section 7 | Used Terrabomb 32009 | -2/Section 7 | Found Integrity Redistributor 32033 | -2/Section 7 | Found Terrabomb 32041 | -2/Section 7 | Used Terrabomb 32077 | -2/Section 7 | Scanned by Researcher 32078 | -2/Section 7 | Intercept squad dispatched 32081 | -2/Section 7 | Spotted Tracker 32083 | -2/Section 7 | Spotted Tracker 32089 | -2/Section 7 | Found Alien Artifact 32090 | -2/Section 7 | Warped through subspace 32094 | -2/Section 7 | Identified exit to Access 32095 | -2/Section 7 | Entered Access 32095 | -1/Access | Evolved 2 slots: Propulsion x1, Utility x1 32232 | -1/Access | Identified exit to Garrison 32232 | -1/Access | Entered Garrison 32232 | -1/Garrison | Used Integrity Redistributor, redistributed integrity from core (-67) 32244 | -1/Garrison | Triggered checkpoint 32250 | -1/Garrison | Spotted B-99 Colossus 32251 | -1/Garrison | Triggered checkpoint 32258 | -1/Garrison | Discovered new exit (range 15) 32259 | -1/Garrison | Identified exit to Access 32260 | -1/Garrison | Attempted to access garrison exit controls, blocked by remote lockdown 32265 | -1/Garrison | Triggered checkpoint 32267 | -1/Garrison | Discovered exit to Access (range 8) 32269 | -1/Garrison | Attempted to access garrison exit controls, blocked by remote lockdown 32275 | -1/Garrison | Discovered exit to Access (range 10) 32276 | -1/Garrison | Entered Access 32448 | -1/Access | Energy Cycler disabled 32458 | -1/Access | Discovered new exit (range 8) 32459 | -1/Access | Identified exit to Command 32459 | -1/Access | Entered Command 32461 | -1/Command | Identified exit to Surface 32491 | -1/Command | Disengaged cave seal 32491 | -1/Command | Derelicts emerged from the dark tunnel 32493 | -1/Command | Welcomed Warlord to Command 32574 | -1/Command | Fired Supercharged Sigix Terminator 32574 | -1/Command | High security lockdown imminent 32574 | -1/Command | MAIN.C activated Command garrisons 32574 | -1/Command | Destroyed DV-GLY(g) 32574 | -1/Command | Destroyed F0-ZL2(L) 32574 | -1/Command | Destroyed Combat Programmer 32575 | -1/Command | Core integrity fell below 50% 32580 | -1/Command | Spotted Striker 32581 | -1/Command | Spotted Striker 32595 | -1/Command | Destroyed 171 combat bots 32595 | -1/Command | Spotted B-99 Colossus 32595 | -1/Command | Spotted B-99 Colossus 32600 | -1/Command | Murdered 7 allies 32605 | -1/Command | Lost 8 parts (2p3n3u) 32605 | -1/Command | Lost 5 allies 32652 | -1/Command | Identified Navigation Efficiency Matrix 32652 | -1/Command | Installed Navigation Efficiency Matrix, process failed with unexpected side effects 32653 | *** | Escaped! Last Messages --------------- 32588_ Acquired Impulse Thruster Array. 32630_ Acquired Lyr. Medium Armor Plating. 32640_ Access Shell breached. 32645_ Triggered Stasis Trap. 32645_ A bubble of rippling energy engulfs the area. 32645_ Field strength at 92. 32645_ Field strength at 84. 32646_ Field strength at 67. 32647_ Field strength at 50. 32648_ Field strength at 33. 32649_ Lyr. Medium Armor Plating blown off. 32649_ Lgt. Quantum Reactor blown off. 32649_ Exp. Hacking Suite blown off. 32649_ E-15 Imp destroyed. 32649_ Stasis field depleted. 32650_ The Access Shell folds into the floor. 32652_ Identified Navigation Efficiency Matrix. 32652_ Navigation Efficiency Matrix installed, partial failure due to system anomalies. [Achievement: One Last FU] Map ----- +----------------------------------------------------+ | ???????????????????# #?? ""??????????????? | | ???????????????????# #?? = """"?????????????? | | ???????????????????# #? """"? ???????????? | | #######+#########+## #? "" #??????????? | | # #??????????? | | # #??????????? | | + #??????????? | | # ] #??????????? | | # #??????????? | | ##+#############"/"/######? #??????????? | | # ## #? #??????????? | | # ## #?? #??????????? | | # ## #??####+######??????????? | | # ## T " #???????????????????????? | | # ## #???????????????????????? | | # ## #???????????????????????? | | # ## +???????????????????????? | | # ####################???????????????????????? | | # #??????????????????????????????????????????? | | # #????????????##############????????????????? | | # #########????# #????????????????? | | # + #????# #????????????????? | | ###+###### #????# #????????????????? | | ?# ## #????# #????????????????? | | ?# ## #????# ^ #????????????????? | | ## ## #????# @" #????????????????? | | # ## #????# "" #????????????????? | | # [ ## #????# #????????????????? | | # ## #????# #????????????????? | | ##### #????# #????????????????? | | #????# #????????????????? | | == #????# #????????????????? | | """ !%###????#### ##????????????????? | | [ %%#???????# ^ #?????????????????? | | *% [ ##??????## #?????????????????? | | #??????# #?????????????????? | | # #???## #?????????????????? | | "" " ### #??# #?????????????????? | | "" " #???##??## ^ #?????????????????? | | """"""" " ###?????# !! #?????????????????? | | " " ?????## /* ###?????????????????? | | " " #???????# ==%!#???????????????????? | | " " ##??????##++++##???????????????????? | | """""""" " ""###?????# #????????????????????? | | "" """ ?????# #????????????????????? | | " " !????# #????????????????????? | | # " " ????+ ##???????????????????? | | == " " ????# "##########??????????? | | ==! " " ????# # // #??????????? | | [*= " " ""?????# # / #??????????? | +----------------------------------------------------+ Best States ------------- Heat Dissipation 52 Energy Generation 63 Energy Capacity 840 Matter Stores 300 Matter Capacity 300 Sight Range 24 Robot Scan Range 20 Terrain Scan Density 10 Cloak Strength 4 Additional Mass Support 9 Armor Coverage 600 Resistance: TH 10 Propulsion Shielding 90 Utility Shielding 90 Melee Speed Boost 50 Phase Shifting 15 Evasion (%) 96 Targeting Accuracy 8 Core Analysis 6 Recoil Reduction 3 Offensive Hacking 64 Defensive Hacking 34 Trap Extractor Capacity 8 Item Schematics ----------------- Exp. Sensor Array | -8/Materials | Scanalyzed Hacking Suite | -8/Materials | Hacked Cld. VTOL Module | -7/Factory | Scanalyzed Adv. Hacking Suite | -6/Factory | Hacked Exp. Utility Shielding | -6/Factory | Hacked Exp. Hacking Suite | -6/Factory | Scanalyzed Q-thruster | -6/Factory | Scanalyzed Lrn. Missile Launcher | -6/Factory | Scanalyzed Adv. Signal Interpreter | -6/Factory | Hacked Combat Drone Bay | -6/Data Miner | Free Lgt. Regenerative Plating | -6/Data Miner | Free Imp. Energy Well | -6/Data Miner | Free Imp. KE Penetrator | -6/Data Miner | Free Enh. Armored Leg | -6/Data Miner | Free Adv. Medium Treads | -6/Data Miner | Free Adv. Particle Charger | -6/Data Miner | Free Hardcell Cannon | -6/Data Miner | Free Adv. Trap Extractor | -6/Data Miner | Free Lgt. Particle Reactor | -6/Data Miner | Free Adv. Force Field | -6/Data Miner | Free Exp. Signal Interpreter | -5/Factory | Hacked Adv. Surge Thruster | -5/Factory | Hacked Adv. System Shield | -5/Factory | Hacked Adv. Cloaking Device | -5/Factory | Scanalyzed Cld. Nuclear Pulse Thruster | -5/Factory | Scanalyzed Assault Drone Bay | -5/Zhirov | Free Exp. Heat Sink | -5/Zhirov | Free Exp. Optical Array | -5/Zhirov | Free Imp. Arc Thrower | -5/Zhirov | Free Graviton Reactor | -4/Factory | Hacked Stasis Canceller | -3/Testing | Hacked Adv. Phase Shifter | -2/Research | Hacked Exp. System Shield | -2/Quarantine | Archive Exp. Biometal Medium Treads | -2/Quarantine | Archive Cld. Impulse Thruster | -2/Quarantine | Archive Gravity Neutralizer | -2/Quarantine | Archive Exp. Coolant Injector | -2/Quarantine | Archive Exp. Thermal Generator | -2/Quarantine | Archive Exp. Shield Generator | -2/Quarantine | Archive Proton Burst Cannon | -2/Quarantine | Archive Robot Schematics ------------------ M-28 Smith | -7/Factory | Hacked B-60 Warrior | -6/Data Miner | Free L-41 Fighter | -6/Data Miner | Free M-22 Extractor | -6/Data Miner | Free E-15 Imp | -6/Data Miner | Free A-15 Conveyor | -6/Data Miner | Free A-27 Freighter | -6/Data Miner | Free P-80 Master | -4/Factory | Hacked G-73 Enforcer | -2/Quarantine | Archive K-01 Serf | -2/Quarantine | Archive Fabricated ------------ Hacking Suite | x1 | -7/Factory Adv. System Restoration Module | x2 | -7/Factory | Preloaded Cld. VTOL Module | x1 | -6/Factory Cld. VTOL Module | x1 | -6/Factory Cld. VTOL Module | x1 | -6/Factory Adv. Hacking Suite | x1 | -6/Factory Exp. Hacking Suite | x1 | -6/Factory Exp. Hacking Suite | x1 | -6/Factory Q-thruster | x2 | -6/Factory | Preloaded Exp. Hacking Suite | x1 | -6/Factory Exp. Utility Shielding | x1 | -6/Factory Q-thruster | x2 | -5/Factory Exp. Signal Interpreter | x1 | -5/Factory Exp. Hacking Suite | x1 | -5/Factory B-48 Gladiator | x3 | -5/Factory | Preloaded Adv. Surge Thruster | x2 | -5/Factory Adv. Trap Extractor | x2 | -5/Factory Exp. Hacking Suite | x1 | -5/Factory M-22 Extractor | x1 | -5/Factory | Preloaded Exp. Utility Shielding | x1 | -5/Factory Lgt. Quantum Reactor | x2 | -5/Factory | Preloaded Cld. VTOL Module | x1 | -5/Factory Cld. Nuclear Pulse Thruster | x1 | -5/Factory Cld. Nuclear Pulse Thruster | x1 | -5/Factory Cld. Nuclear Pulse Thruster | x1 | -4/Factory Adv. Surge Thruster | x2 | -4/Factory B-60 Warrior | x3 | -4/Factory | Preloaded Graviton Reactor | x1 | -4/Factory Graviton Reactor | x1 | -4/Factory Exp. Hacking Suite | x1 | -4/Factory P-80 Master | x2 | -4/Factory P-80 Master | x2 | -4/Factory P-80 Master | x2 | -4/Factory P-80 Master | x2 | -4/Factory Graviton Reactor | x1 | -3/Testing Stasis Canceller | x1 | -3/Testing Adv. Phase Shifter | x1 | -2/Research Graviton Reactor | x1 | -2/Research Alien Tech Used ----------------- Integrated Reactor Phase Redirector Subatomic Replicator Core Regenerator Core Membrane Integrated Thermoelectric Network Integrity Redistributor LRC Inertial Stabilizer LRC Energy Well Terrabomb Transdimensional Reconstructor Supercharged Sigix Terminator Navigation Efficiency Matrix Achievements -------------- Launcher Specialist One Last FU WMD Challenges ------------ None Game ------ Seed MappingStoragePod Manual? 0 Play Time 06:24:51 Cumulative 422.3 hours Start 2024.06.27 @ 08:20:22 End 2024.06.30 @ 17:23:22 Sessions 17 Manual Loads 0 Difficulty Rogue Special Mode None Game No. 254 Rogue 254 Adventurer 0 Explorer 0 Win Type 0 Total 26 Types 18/2/3/1/1/0/0/1/0 Lore% 87 Gallery% 88 Achievement% 83 Wizard Run 0 Options --------- Layout 0 ASCII 0 Keyboard 1 Movement Numpad Keybinds 0 Fullscreen 2 Font 18/SmallcapsGlow Map View 76x50 Zoom Use 0% Tactical HUD 1 Map Filters NONE Filters NONE Steam 1 RUN: b26571d1-e364-4efb-8d4a-22ad8ef6744e